Cogmind - Beta 16.1 @@@ ROGUE MODE // 2026.03.12 @ 19:51:38 Player: +Jones Result: Destroyed by G-73 Enforcer with Heavy Laser Performance ------------- Evolutions (8) 4000 Regions Visited (26) 5200 Robots Destroyed (456) 2280 Value Destroyed (20650) 20650 Prototype IDs (81) 1620 Alien Tech Used (2) 400 Bonus (8413) 8413 TOTAL SCORE: 42563 Bonus ------- High Alert Combat Kills 1906 Follower Combat Kills 2446 Awakened Behemoth Slayer 1000 Network Hubs Disabled 200 Met Zhirov 300 Built Enhanced Grunts 300 A7 Reached Mainframe 300 Met R17 at Cetus 500 Met R17 at Research 2000 Scanned by Researcher 500 Acquired SGEMP 2000 Friendly Fire -3039 Cogmind --------- Core Integrity 0/1450 Matter 78/300 Energy 100/100 System Corruption 0% Temperature Cool (0) Movement Core (50) Location -2/Research Parts ------- > --- POWER (2) -------- (None) > --- PROPULSION (6) --- (None) > --- UTILITY (10) ----- (None) > --- WEAPON (5) ------- Plasma Lance > --- INVENTORY (5) ---- 2N-1CE's Frost Array Advanced Remote Datajack CR-A16's Behemoth Slayer SGEMP Prototype Peak State ------------ > --- POWER ------------ Micro Antimatter Reactor Quantum Reactor > --- PROPULSION ------- Medium Treads Medium Treads Advanced Heavy Treads Advanced Heavy Treads > --- UTILITY ---------- Advanced Coolant Injector Huge Storage Unit Enhanced Optical Array Advanced Sensor Array Experimental Signal Interpreter Experimental Targeting Computer Core Analyzer Centrium Medium Armor Plating System Mapper Improved Corruption Screen > --- WEAPON ----------- Heavy Machine Gun Railgun Helical Railgun Helical Railgun Plasma Lance > --- INVENTORY -------- Medium Treads 2N-1CE's Frost Array Advanced Energy Well Advanced Matter Compressor Machine Analyzer Layered Light Armor Plating Advanced Point Defense System Long-range Tractor Beam Heart of Steel Transdimensional Reconstructor High-powered Disruptor Cannon Heavy Neutron Cannon Heavy Machine Gun Advanced Micro-nuke Launcher Advanced Micro-nuke Launcher Advanced Remote Datajack Multitool CR-A16's Behemoth Slayer GAL Module SGEMP Prototype [Rating: 174] Favorites ----------- Power Light Ion Engine Engine Light Ion Engine Power Core Reinforced Fission Core Reactor Antimatter Reactor Propulsion Armored Treads Treads Armored Treads Leg Enhanced Flexi-carbon Leg Wheel Wheel Flight Unit Advanced Surge Thruster Utility High-capacity Storage Unit Device Improved Force Field Storage High-capacity Storage Unit Processor Advanced Signal Interpreter Hackware Improved Hacking Suite Protection Gun Armor Weapon Enhanced Autogun Energy Gun Subdweller Laser Energy Cannon Heavy Neutron Cannon Ballistic Gun Enhanced Autogun Ballistic Cannon Hardcell Cannon Launcher Grenade Launcher Special Weapon Mining Laser Impact Weapon Hammer Slashing Weapon Great Axe Piercing Weapon CR-A16's Behemoth Slayer Special Melee Weapon Advanced Datajack Build | -11 -10 -10 -8 -7 -7 -7 -7 -6 -6 -6 -6 -5 -5 -5 -5 -4 -4 -4 -4 -4 -4 -4 -4 -3 -3 -2 ------- Run | Yrd Mat Sub Mat Fac Low Low Zio Pro Fac Was Fac Fac Upp Upp Zhi Pro Fac Was Fac Ext Cet Arc Hub Res Tes Res Slots Evolved 16 | . . . 4 2 . . . . 2 . . 2 . . . . 2 . . . . . . 2 . 2 Power 1 | . . . . . . . . . . . . . . . . . 1 . . . . . . . . . Propulsion 4 | . . . 1 1 . . . . 2 . . . . . . . . . . . . . . . . . Utility 8 | . . . 1 1 . . . . . . . 2 . . . . 1 . . . . . . 1 . 2 Weapon 3 | . . . 2 . . . . . . . . . . . . . . . . . . . . 1 . . Parts Attached 304 | 7 8 14 17 16 11 8 1 2 5 3 3 9 12 4 4 6 21 1 8 16 12 9 11 12 64 20 Power 36 | 1 1 1 2 1 2 1 . . 1 . . 1 . . 1 . 2 1 1 4 1 . 2 3 7 3 Engine 9 | 1 1 1 2 1 2 1 . . . . . . . . . . . . . . . . . . . . Core 9 | . . . . . . . . . 1 . . 1 . . . . 1 . 1 4 . . 1 . . . Reactor 18 | . . . . . . . . . . . . . . . 1 . 1 1 . . 1 . 1 3 7 3 Propulsion 62 | 2 . 5 4 3 5 2 1 . 3 2 1 . 2 1 . 1 4 . . 3 3 1 . . 15 4 Treads 54 | 2 . 1 4 3 5 2 1 . 3 2 1 . 2 1 . 1 4 . . 3 3 . . . 13 3 Leg 2 | . . . . . . . . . . . . . . . . . . . . . . 1 . . 1 . Wheel 4 | . . 4 . . . . . . . . . . . . . . . . . . . . . . . . Hover . | . . . . . . . . . . . . . . . . . . . . . . . . . . . Flight 2 | . . . . . . . . . . . . . . . . . . . . . . . . . 1 1 Utility 97 | 2 2 2 3 7 1 1 . 1 1 . 2 7 5 . 3 1 10 . 4 4 2 5 8 1 18 7 Device 48 | 1 . 1 . 4 1 . . . . . 1 3 3 . 1 1 8 . 2 1 1 3 3 . 10 4 Storage 11 | 1 2 . 1 . . . . . . . . 1 1 . . . . . 1 . . 1 1 . 2 . Processor 14 | . . . . 1 . . . . 1 . 1 2 1 . . . 1 . . 1 . . 1 1 2 2 Hackware 3 | . . . . 1 . . . . . . . . . . . . . . . . . . . . 1 1 Protection 21 | . . 1 2 1 . 1 . 1 . . . 1 . . 2 . 1 . 1 2 1 1 3 . 3 . Artifact . | . . . . . . . . . . . . . . . . . . . . . . . . . . . Weapon 109 | 2 5 6 8 5 3 4 . 1 . 1 . 1 5 3 . 4 5 . 3 5 6 3 1 8 24 6 Energy Gun 11 | . 1 1 . . . . . . . . . 1 1 . . 1 . . . . 1 . . . 5 . Energy Cannon 8 | . . . . . . . . . . . . . . . . . 1 . . 2 . 1 . 1 3 . Ballistic Gun 61 | 2 . 4 7 3 . 3 . 1 . . . . 2 2 . . 4 . 2 3 5 2 1 7 10 3 Ballistic Cannon 5 | . . . 1 . . . . . . . . . . . . 2 . . . . . . . . 1 1 Launcher 8 | . 2 . . 1 1 1 . . . . . . . . . . . . . . . . . . 1 2 Special Weapon 3 | . 1 . . 1 . . . . . . . . . . . . . . . . . . . . 1 . Impact Weapon 1 | . 1 . . . . . . . . . . . . . . . . . . . . . . . . . Slashing Weapon 6 | . . 1 . . 2 . . . . 1 . . 1 . . . . . . . . . . . 1 . Piercing Weapon 5 | . . . . . . . . . . . . . 1 1 . 1 . . . . . . . . 2 . Special Melee Weapon 1 | . . . . . . . . . . . . . . . . . . . 1 . . . . . . . Unidentified Prototypes 43 | . . 1 1 1 . . . . . 1 . . . . 4 . . . . . 4 3 . 1 22 5 Corrupted Parts 3 | . . . . . . . . . . . . . . . . . . . . . 3 . . . . . System Corruption 13 | . . . . . . . . . . . . . . . . . . . . . 13 . . . . . Parts Lost 78 | . . 5 . . 1 . . . . . . . 2 7 . 1 4 4 . . . . 3 2 24 25 Power 9 | . . 1 . . . . . . . . . . . . . . . 1 . . . . . . 4 3 Propulsion 24 | . . 3 . . 1 . . . . . . . . 3 . 1 2 . . . . . . . 8 6 Utility 13 | . . 1 . . . . . . . . . . 1 . . . 1 1 . . . . 1 . 3 5 Weapon 32 | . . . . . . . . . . . . . 1 4 . . 1 2 . . . . 2 2 9 11 Highest Loss Streak 20 | . . 2 . . 1 . . . . . . . 2 5 . 1 2 4 . . . . 3 2 9 20 To Critical Strikes 1 | . . . . . . . . . . . . . . . . . 1 . . . . . . . . . Average Backups 16 | 1 8 14 19 19 18 18 16 16 15 15 14 14 15 13 12 14 15 15 14 15 15 15 18 19 19 17 Power . | . . . . . . . . . . . . . . . . . . . . 1 . . . . . . Propulsion 1 | . . 2 3 3 3 3 2 2 1 1 1 1 1 1 . . . . . . 1 1 1 2 2 1 Utility 6 | . 2 3 8 9 9 8 6 6 6 5 6 6 6 6 6 7 6 8 7 6 6 7 7 8 7 6 Weapon 5 | 1 5 7 6 6 4 4 5 6 6 6 5 5 5 4 3 3 3 3 1 3 4 5 5 5 5 5 Tool/Special . | . . . . . . . . . . . . . . . . . . . . . . . . . . . Unused Backups 39 | . 1 8 4 2 . 1 2 . 1 . 1 2 . . . . . . . 5 2 1 . 3 4 2 Power . | . . . . . . . . . . . . . . . . . . . . . . . . . . . Propulsion 4 | . . 1 1 . . . . . . . . . . . . . . . . 1 1 . . . . . Utility 19 | . . 3 1 . . 1 2 . 1 . 1 2 . . . . . . . 3 1 1 . 1 1 1 Weapon 13 | . 1 3 2 2 . . . . . . . . . . . . . . . 1 . . . 2 2 . Tool/Special 3 | . . 1 . . . . . . . . . . . . . . . . . . . . . . 1 1 Average Slot Usage (%) 92 | . 100 93 97 99 99 100 100 100 99 99 100 99 97 96 93 90 84 77 82 85 84 83 82 79 87 86 Engine 3 | . 14 8 8 6 6 6 6 6 2 . . . . . . . . . . . . . . . . . Core 1 | . . . . . . . . . 2 5 5 5 5 5 3 . 5 . 4 7 9 5 5 2 . . Reactor 2 | . . . . . . . . . . . . . . . 1 5 5 8 5 2 . 5 5 5 7 7 Treads 20 | . 28 6 26 29 25 26 26 26 34 35 35 30 30 29 29 25 17 15 15 16 15 15 15 14 17 16 Wheel 3 | . . 21 . . . . . . . . . . . . . . . . . . . . . . . . Device 8 | . 14 13 4 5 5 5 6 5 5 5 4 6 2 5 4 5 11 8 10 8 7 10 9 8 8 8 Storage 7 | . 14 14 9 6 6 6 6 6 5 5 5 5 5 5 5 5 5 5 5 5 5 5 5 4 4 3 Processor 9 | . . . . 6 6 6 6 6 5 5 5 10 14 15 17 17 15 15 15 20 17 15 15 14 16 23 Protection 4 | . . . 13 3 6 7 6 6 5 5 5 8 7 5 5 4 1 3 4 1 5 4 5 4 4 1 Ballistic Gun 21 | . 15 11 31 28 35 39 28 33 31 26 29 25 21 22 17 12 9 10 16 17 20 20 17 20 19 18 Launcher 1 | . 5 6 . . . . 4 2 . 5 . . . . . . . 3 . . . . . . . . Slashing Weapon 2 | . . 6 2 1 4 . 4 3 3 1 4 5 5 . . . . . . . . . . . . . Peak Build Rating 174 | 7 8 17 36 55 59 60 64 63 74 77 79 89 98 99 96 104 125 128 131 128 140 146 151 161 168 174 Average Rating 79 | 5 7 14 30 41 56 57 62 61 71 73 74 86 91 94 91 96 113 116 126 119 128 144 146 153 151 158 On Entrance 84 | . 7 8 16 36 55 57 57 63 62 74 74 79 87 98 92 89 104 125 96 128 119 140 146 150 156 151 Avg Prop Armor Cover (%) 8 | . . 13 . . . . . . . . 4 7 4 4 5 5 . . . . . . . . . . Naked Turns 3 | . . . . . . . . . . . . . . . . . . . . . . . . . . 3 Heaviest Build 176 | 12 30 32 61 74 78 78 80 78 77 81 76 84 92 98 87 96 125 126 111 120 120 120 163 168 176 163 Greatest Support 240 | 40 40 40 60 80 83 83 80 80 120 120 120 110 118 133 133 183 215 215 215 215 240 240 240 240 240 196 Greatest Overweight (x) 3 | . . 3 3 . 1 . . . . . . . . 1 . . . . . . . . . . 2 2 Average Overweight (x) . | . . 1 . . . . . . . . . . . . . . . . . . . . . . . . Largest Inventory Capacity 25 | 8 15 15 20 20 20 20 20 20 20 20 20 20 20 20 20 20 20 20 20 20 20 20 25 25 25 25 Average Capacity 19 | 7 10 15 19 20 20 20 20 20 20 20 20 20 20 20 20 20 20 20 20 20 20 20 24 25 25 24 Most Carried 25 | 3 13 15 20 20 20 20 20 20 20 20 20 20 20 20 20 20 20 20 20 20 20 20 25 25 25 25 Average Carried 18 | 1 8 14 19 19 19 19 19 19 19 19 19 19 19 19 19 19 19 19 19 19 19 19 22 24 24 23 Final Capacity 25 | 8 15 15 20 20 20 20 20 20 20 20 20 20 20 20 20 20 20 20 20 20 20 20 25 25 25 5 Final Carried 25 | 3 13 15 20 17 20 20 20 20 20 20 20 20 20 19 20 20 20 19 20 19 20 20 25 25 25 5 Class Distribution -------------------- 26% | Scavenger-Tank 20% | Mutant 15% | Scavenger-Executioner 9% | Executioner 5% | Scavenger-Assassin 5% | Tank 3% | Commander-Tank 3% | Skirmisher Dominant Class ---------------- Mutant | -10/Materials Mutant | -10/Subcaves Tank | -8/Materials Skirmisher | -7/Factory Scavenger-Executioner | -7/Lower Caves Scavenger-Executioner | -7/Lower Caves Scavenger-Executioner | -7/Zion Scavenger-Executioner | -6/Proximity Caves Executioner | -6/Factory Executioner | -6/Waste Executioner | -6/Factory Assassin | -5/Factory Tank | -5/Upper Caves Executioner | -5/Upper Caves Scavenger-Tank | -5/Zhirov Scavenger-Tank | -4/Proximity Caves Scavenger-Tank | -4/Factory Scavenger-Tank | -4/Waste Scavenger-Assassin | -4/Factory Scavenger-Tank | -4/Extension Commander-Tank | -4/Cetus Scavenger-Tank | -4/Archives Scavenger-Tank | -4/Hub_04(d) Scavenger-Tank | -3/Research Scavenger-Tank | -3/Testing Scavenger-Skirmisher | -2/Research Resources | -11 -10 -10 -8 -7 -7 -7 -7 -6 -6 -6 -6 -5 -5 -5 -5 -4 -4 -4 -4 -4 -4 -4 -4 -3 -3 -2 ----------- Run | Yrd Mat Sub Mat Fac Low Low Zio Pro Fac Was Fac Fac Upp Upp Zhi Pro Fac Was Fac Ext Cet Arc Hub Res Tes Res Matter Collected 25032 | 332 760 2031 1060 1420 1045 787 50 554 237 737 723 152 834 687 260 358 1975 404 581 1102 396 613 723 1078 4322 1811 Remotely 3637 | . . . . . . . . . . . . . . . . . 524 404 . . . . . . 2210 499 Salvage Created 24838 | 276 457 482 965 1417 917 994 . 391 248 1001 738 152 553 706 379 642 2165 999 581 2450 389 412 904 739 3918 1963 Parts 1124 | 31 34 24 47 85 28 40 . 20 14 5 38 13 18 26 15 16 81 1 21 93 18 33 55 35 224 109 Haulers Intercepted 3 | . 2 . . . . . . . . . . . . . . . . . . . . . . . 1 . Recyclers Shooed 9 | 1 . . 1 . . . . . . . 1 . . . . . 1 . 2 2 . . . 1 . . Parts Field Recycled . | . . . . . . . . . . . . . . . . . . . . . . . . . . . Retrieved Matter . | . . . . . . . . . . . . . . . . . . . . . . . . . . . Parts Self-Destructed 121 | . . 16 . . 10 36 . 17 . . . . 6 21 8 7 . . . . . . . . . . Prevented 12 | . . . . . . . . . . . . . 1 2 3 6 . . . . . . . . . . Parts Restored . | . . . . . . . . . . . . . . . . . . . . . . . . . . . Kills | -11 -10 -10 -8 -7 -7 -7 -7 -6 -6 -6 -6 -5 -5 -5 -5 -4 -4 -4 -4 -4 -4 -4 -4 -3 -3 -2 ------- Run | Yrd Mat Sub Mat Fac Low Low Zio Pro Fac Was Fac Fac Upp Upp Zhi Pro Fac Was Fac Ext Cet Arc Hub Res Tes Res Combat Hostiles Destroyed 328 | . 14 4 20 22 7 21 . 17 5 5 14 2 8 13 . 10 29 5 2 23 3 1 9 9 49 36 Melee 10 | . . . . 2 . . . . 1 . . . 2 . . . . . . . . . . . 5 . Guns 209 | . 10 3 13 20 7 14 . 4 1 1 14 2 . 6 . 3 8 . 2 21 3 1 7 8 42 19 Cannons 16 | . . . . . . . . . . . . . . . . . 9 . . . . . . . 2 5 AOE 85 | . 4 1 7 . . 7 . 13 3 4 . . 6 6 . 6 11 5 . . . . . . . 12 Classes Destroyed 34 | 2 6 4 4 3 2 2 . 3 . 1 . . . . . . 1 . . 1 . . 1 . 3 1 Worker 21 | . 2 . 2 2 . . . . . . 2 2 . . . . 2 . 1 . . . 1 1 4 2 Builder 14 | . . . . 2 . . . . 1 . . . . . . . 4 . . 1 . . 3 . 2 1 Tunneler 9 | 9 . . . . . . . . . . . . . . . . . . . . . . . . . . Hauler 3 | . 2 . . . . . . . . . . . . . . . . . . . . . . . 1 . Recycler 28 | 1 . . 6 2 . . . . 1 . 1 . . . . . 5 . 4 5 . . 1 . 1 1 Minesweeper 2 | . . . . . . . . 1 . . . . . 1 . . . . . . . . . . . . Mechanic 2 | . . . . 1 . . . . . . . . . . . . . . . . . . . . . 1 Operator 9 | . . . 1 . . . . . . . . . . . . . . . . . . 6 2 . . . Drone 4 | . . . . . . . . 2 . . . . . . . 2 . . . . . . . . . . Watcher 20 | . 3 . 1 3 . . . . . . 1 . . . . . 2 . . 1 2 . 1 2 2 2 Swarmer 73 | . 9 . 5 5 1 5 . 6 4 . 8 . 5 . . . 4 . . 2 . . . . 3 16 Cutter 1 | . . . . . . . . . . . . . . . . . . . . . . . 1 . . . Grunt 87 | . 4 1 11 8 . 10 . 6 . . 1 . 2 11 . 6 10 . . 3 . . 3 . 7 4 Brawler 5 | . . . . . . 1 . 2 . . . . 1 . . . . . . 1 . . . . . . Duelist 6 | . . . 1 . . 1 . . . . . . . . . . . . . . . . . . 3 1 Protector 4 | . . . 2 . . 1 . . . . . . . . . . . . . . . . . . . 1 Researcher 5 | . . . . . . . . . . . . . . . . . . . . . . . . . 5 . Sentry 41 | . . . 1 5 . 2 . . . . 2 . . . . . 5 . . 12 . 1 2 1 6 4 Demolisher 1 | . . . . . . . . . . . . . . . . . . . . 1 . . . . . . Specialist 3 | . . . . . . . . . . . . . . . . . 2 . . . . . . . . 1 Hunter 18 | . . . . . . . . 1 . 1 . . . 1 . . 4 . . . . . 2 5 2 2 Programmer 50 | . . . . 4 . . . . 1 . 3 2 . . . 1 3 . 2 2 . . . 2 24 6 Heavy 1 | . . . . . . . . . . . . . . . . . . . . . . . . . . 1 Behemoth 8 | . . . . . . 1 . . . . . . . 1 . 1 1 . . 2 . . 1 1 . . Compactor 9 | . . . . . . . . . . 4 . . . . . . . 5 . . . . . . . . Cetus Guard 3 | . . . . . . . . . . . . . . . . . . . . . 3 . . . . . Enhanced Grunt 1 | . . . . . . . . . . . . . . . . . . . . . . 1 . . . . Striker 2 | . . . . . . . . . . . . . . . . . . . . . . . . . 2 . Alpha 7 1 | . . . . . . . . . . . . . . . . . . . . . . . . . 1 . Protovariant X 1 | . . . . . . . . . . . . . . . . . . . . . . . . . 1 . Artisan 2 | . . 2 . . . . . . . . . . . . . . . . . . . . . . . . Cobbler 2 | . . 2 . . . . . . . . . . . . . . . . . . . . . . . . Subdweller 8 | . 1 6 1 . . . . . . . . . . . . . . . . . . . . . . . Scientist 1 | . . 1 . . . . . . . . . . . . . . . . . . . . . . . . Zionite 2 | . . 2 . . . . . . . . . . . . . . . . . . . . . . . . Decomposer 3 | . . . . . 1 . . . . . . . 2 . . . . . . . . . . . . . Packrat 2 | . . . . . . 1 . . . . . . . 1 . . . . . . . . . . . . Samaritan 3 | . . . . . . 1 . . . . . . 2 . . . . . . . . . . . . . Thug 4 | . . . . . 2 . . . . . . . . . . . . . . 1 1 . . . . . Savage 4 | . . . . . 4 . . . . . . . . . . . . . . . . . . . . . Butcher 3 | . . . . . 3 . . . . . . . . . . . . . . . . . . . . . Mutant 3 | . . . . . 3 . . . . . . . . . . . . . . . . . . . . . Best Kill Streak 13 | 5 3 1 8 7 3 5 . 4 4 2 6 2 5 5 . 6 7 2 3 6 4 2 6 4 10 13 Combat Bots Only 10 | . 3 1 6 3 3 5 . 4 4 2 5 1 5 5 . 6 5 2 2 5 3 1 3 3 7 10 Max Kills in Single Turn 4 | 1 2 1 4 2 1 4 . 2 2 1 2 1 2 2 . 2 4 1 1 2 1 2 3 1 2 4 Gunslinging 1 | . . . . 1 . 1 . . . . . . . . . . . . . . . . . . 1 1 Exploded 4 | . 2 1 2 . . 4 . 2 2 1 . . 2 2 . 2 3 1 . . . . . . . 4 Melee 1 | . . . . 1 . . . . 1 . . . 1 . . . . . . . . . . . 1 . Uniques/NPCs Destroyed . | . . . . . . . . . . . . . . . . . . . . . . . . . . . Combat | -11 -10 -10 -8 -7 -7 -7 -7 -6 -6 -6 -6 -5 -5 -5 -5 -4 -4 -4 -4 -4 -4 -4 -4 -3 -3 -2 -------- Run | Yrd Mat Sub Mat Fac Low Low Zio Pro Fac Was Fac Fac Upp Upp Zhi Pro Fac Was Fac Ext Cet Arc Hub Res Tes Res Hostile Shots Fired 2233 | . 41 43 59 149 23 36 . 35 35 15 59 8 73 83 . 38 266 5 13 69 15 3 161 122 492 390 Missed 583 | . 13 12 15 67 4 7 . 10 13 4 16 1 22 16 . 16 62 . 2 15 5 . 43 31 91 118 Hits 1650 | . 28 31 44 82 19 29 . 25 22 11 43 7 51 67 . 22 204 5 11 54 10 3 118 91 401 272 Melee 47 | . . . . . 1 2 . . . . . . 5 . . . . 5 . . . . . . 31 3 Projectile 1603 | . 28 31 44 82 18 27 . 25 22 11 43 7 46 67 . 22 204 . 11 54 10 3 118 91 370 269 AOE 4 | . . . . . . . . . . . . . . . . . 2 . . . . . . . 2 . Critical Strikes 87 | . . . 1 2 3 1 . 1 . . 2 . 3 2 . 1 14 1 3 3 5 . 4 4 33 4 Part Disruptions 3 | . . . . . . . . . . . . . . . . . . . . . . . . . 3 . Actively Blocked 3 | . . . . . . . . . . . . . . . . . . . . . . . . . 3 . Damage Taken 31350 | . 293 657 672 842 371 556 . 360 331 198 565 143 1076 1271 . 270 3056 365 207 640 162 38 2119 1669 9107 6382 Core 2696 | . 29 134 130 56 12 39 . 16 16 . 52 21 50 45 . 33 87 30 . 38 . . . 68 491 1349 Absorbed by Shields 4016 | . . . . . . . . . . . . . 53 304 . 246 949 . 117 663 170 41 337 . 670 466 Reduced by Siege Mode 1070 | . . . . . . . . . . . . . . 18 . . 146 . 15 11 3 . 37 33 633 174 Ignored by Resistances 36 | . . . . . . . . . . . . . . . . . . . . . . . . . . 36 Regen/Repaired (Parts) 1201 | . . . . . . . 969 . . . . 89 . . . . . . . . . . . . 143 . Core Remaining (%) 76 | 100 . 34 76 . . . . 82 . . 92 . . . . 85 . . . . . . 86 . 57 . Volleys Fired 1128 | 23 73 180 42 68 20 27 . 31 5 20 30 8 5 26 16 15 87 32 12 63 14 28 32 38 145 88 Largest 6 | 2 2 2 4 6 6 6 . 6 5 5 6 5 1 5 1 3 4 3 4 4 4 4 4 5 5 5 Hottest 288 | 40 100 90 106 150 150 166 . 169 133 133 157 150 36 140 30 96 200 100 140 210 134 138 140 173 288 233 Shots Fired 3109 | 46 117 204 117 235 112 135 . 97 17 38 131 28 5 79 16 27 239 37 45 183 53 67 122 146 508 305 Gun 2539 | 46 88 52 100 234 111 131 . 83 15 19 131 28 1 73 . 18 108 8 45 158 52 52 122 137 456 271 Cannon 238 | . . . 7 . . . . . . . . . . . . . 120 . . 25 1 . . 9 52 24 Launcher 288 | . 17 152 10 . 1 4 . 14 2 19 . . 4 6 . 9 11 29 . . . . . . . 10 Special 44 | . 12 . . 1 . . . . . . . . . . 16 . . . . . . 15 . . . . Kinetic 2622 | 46 85 29 107 227 111 130 . 82 15 19 127 25 1 73 . 18 221 8 45 158 52 52 122 137 454 278 Thermal 199 | . 15 23 . 8 . 1 . 1 . . 4 3 . . 16 . 7 . . 25 1 15 . 9 54 17 Explosive 288 | . 17 152 10 . 1 4 . 14 2 19 . . 4 6 . 9 11 29 . . . . . . . 10 Electromagnetic . | . . . . . . . . . . . . . . . . . . . . . . . . . . . Robot Hit Streak 39 | 20 22 19 15 20 13 16 . 6 6 13 9 8 1 13 10 3 16 25 16 18 8 10 19 21 39 26 Robot Miss Streak 8 | 1 2 2 4 6 5 2 . 6 6 2 6 2 2 5 2 2 4 1 3 2 2 8 4 4 4 4 Penetration Max 2 | . . . . . . . . . . . . . . . . . 1 . . 2 1 1 1 1 2 2 Secondary Targets 46 | . . . 2 4 1 1 . . . . 3 . . 1 . 1 . . . 4 2 . 3 2 18 4 Max Gunslinging Chain 2 | . . . 1 2 1 1 . . . . 1 . . 1 . 1 . . . 1 1 . 1 1 1 2 Shots Hit Robots 1830 | 35 64 55 64 126 80 79 . 52 12 24 75 20 16 46 17 19 107 32 28 117 31 34 60 81 364 192 Core Hits 963 | 15 33 21 53 62 32 48 . 35 13 13 35 7 16 35 6 26 75 11 12 70 14 21 31 29 150 100 Critical Kills 21 | . . 1 . . . . . . . . . . . . . . 2 . . 2 1 4 2 2 5 2 Critical Parts Destroyed 20 | 1 1 . 2 . . . . . . . 2 . . . . . 1 . . . 1 . 2 . 8 2 Critical Strikes 59 | 1 1 1 2 . . . . . . . 2 . . 1 . . 13 . 1 2 2 4 7 2 16 4 Destroy 43 | 1 1 1 2 . . . . . . . 2 . . . . . 5 . . 2 2 4 4 2 13 4 Blast 5 | . . . . . . . . . . . . . . . . . 5 . . . . . . . . . Sever 2 | . . . . . . . . . . . . . . . . . . . . . . . . . 2 . Impale 9 | . . . . . . . . . . . . . . 1 . . 3 . 1 . . . 3 . 1 . Melee Attacks 484 | . 13 213 7 21 16 2 1 3 14 . 12 10 17 9 5 14 16 . 16 5 . . 17 8 57 8 Impact 43 | . 13 30 . . . . . . . . . . . . . . . . . . . . . . . . Slashing 309 | . . 183 7 21 16 2 1 3 14 . 12 10 16 . . . . . . . . . . . 24 . Piercing 130 | . . . . . . . . . . . . . 1 9 5 14 16 . 14 5 . . 17 8 33 8 Sneak Attacks 68 | . . 14 2 2 13 1 . 2 1 . 1 4 4 1 . . 5 . 5 1 . . 3 . 8 1 Combat Hostiles . | . . . . . . . . . . . . . . . . . . . . . . . . . . . Follow-up Attacks . | . . . . . . . . . . . . . . . . . . . . . . . . . . . Damage Inflicted 65001 | 371 1084 2015 2579 2576 2222 2180 . 2571 584 2323 1569 647 1565 2016 407 1439 5558 4038 1032 3663 917 995 1799 1495 11194 8162 Guns 35976 | 371 693 686 1027 2278 1168 1366 . 718 168 180 1500 339 . 664 . 273 1749 188 614 3293 917 964 1214 1495 9012 5099 Cannons 3325 | . . . 22 . . . . . . . . . . . . . 1692 . . 288 . . . . 658 665 Explosions 18233 | . 391 282 1402 . 64 756 . 1686 235 2143 . . 722 1122 . 982 1796 3850 88 . . . 365 . 59 2290 Melee 7290 | . . 1047 128 295 990 58 . 167 181 . 69 308 843 230 280 184 305 . 330 82 . . 220 . 1465 108 Ramming 19 | . . . . 3 . . . . . . . . . . . . 16 . . . . . . . . . Kinetic 37232 | 371 648 307 1049 2278 1168 1366 . 718 168 180 1500 339 . 664 . 273 3333 188 614 3293 917 964 1214 1495 8955 5230 Thermal 2378 | . 45 379 . . . . . . . . . . . . 127 . 112 . 88 288 . 31 . . 774 534 Explosive 17717 | . 391 282 1402 . 64 756 . 1686 235 2143 . . 722 1122 . 982 1792 3850 . . . . . . . 2290 Electromagnetic 365 | . . . . . . . . . . . . . . . . . . . . . . . 365 . . . Impact . | . . . . . . . . . . . . . . . . . . . . . . . . . . . Slashing 4931 | . . 1047 128 295 990 58 . 167 181 . 69 308 843 . . . . . . . . . . . 845 . Piercing 2359 | . . . . . . . . . . . . . . 230 280 184 305 . 330 82 . . 220 . 620 108 Highest Corruption 32 | . . . . 2 2 . . . 1 23 28 . 4 . . . . . . . 13 13 2 . 32 . Average Corruption 14 | . . . . 1 1 . . . 1 15 25 . 3 . . . . . . . 7 8 2 . 17 . Corruption Purged 19 | . . . . . 2 . . . . . . . 4 . . . . . . . . 13 . . . . Corruption Blocked 13 | . . . . . . . . . . . . . . . . . 2 . 1 2 6 . . . . 2 Effects 291 | . . . . 16 2 . . . . 14 82 . 3 . . . . . . . 3 10 1 . 160 . Message Errors 72 | . . . . 4 1 . . . . 6 26 . . . . . . . . . 1 1 1 . 32 . Matter Fused 67 | . . . . 4 . . . . . 3 17 . 1 . . . . . . . 1 4 . . 37 . Heat Flow Errors 16 | . . . . 1 . . . . . . 1 . . . . . . . . . . 1 . . 13 . Energy Discharges 35 | . . . . 3 . . . . . . 9 . 1 . . . . . . . . 1 . . 21 . Parts Fused 2 | . . . . . . . . . . . 1 . . . . . . . . . 1 . . . . . Data Loss (minor) 43 | . . . . 2 . . . . . 3 15 . . . . . . . . . . 3 . . 20 . Data Loss (major) 16 | . . . . . . . . . . 1 3 . 1 . . . . . . . . . . . 11 . Misfires 11 | . . . . . 1 . . . . . 5 . . . . . . . . . . . . . 5 . Alerts 4 | . . . . 1 . . . . . . . . . . . . . . . . . . . . 3 . Misdirections 1 | . . . . . . . . . . . . . . . . . . . . . . . . . 1 . Weapon Failures 24 | . . . . 1 . . . . . 1 5 . . . . . . . . . . . . . 17 . Overload Shots 16 | . . . . 7 . 1 . 1 . . 4 3 . . . . . . . . . . . . . . Effects 3 | . . . . . . . . 1 . . 1 1 . . . . . . . . . . . . . . Energy Bleed 1 | . . . . . . . . 1 . . . . . . . . . . . . . . . . . . Short Circuit 2 | . . . . . . . . . . . 1 1 . . . . . . . . . . . . . . Overflow Damage 2305 | . . 36 . 44 139 41 . 208 . . 44 96 281 178 73 83 252 11 134 7 . . 126 . 246 306 Projectiles 145 | . . . . . . . . . . . . . . . . . 39 . . 7 . . . . 30 69 Explosions 551 | . . . . . . 41 . 88 . . . . . 61 . . 83 11 . . . . 78 . . 189 Melee 1609 | . . 36 . 44 139 . . 120 . . 44 96 281 117 73 83 130 . 134 . . . 48 . 216 48 Knockbacks 16 | . . . . . . . . . . . . . . . . . 15 . . . . . . . . 1 Impact . | . . . . . . . . . . . . . . . . . . . . . . . . . . . Kinetic 14 | . . . . . . . . . . . . . . . . . 13 . . . . . . . . 1 Secondary 2 | . . . . . . . . . . . . . . . . . 2 . . . . . . . . . Self-Inflicted Damage 779 | . . 14 38 . . . . . . . . . 144 . . 36 . 146 . . . . 93 . . 308 Shots 16 | . . 2 1 . . . . . . . . . 3 . . 1 . 3 . . . . 1 . . 5 Rammed 4 | . . . . 1 . . . . . . . . . . . . 2 . . . . . . . 1 . Targets Rammed 4 | . . . . 1 . . . . . . . . . . . . 2 . . . . . . . 1 . Kicked . | . . . . . . . . . . . . . . . . . . . . . . . . . . . Crushed . | . . . . . . . . . . . . . . . . . . . . . . . . . . . Highest Temperature 497 | . 120 12 198 303 330 342 . 497 119 169 276 258 24 240 . 176 199 . 294 380 303 164 61 42 472 198 Average Temperature 86 | . 29 4 61 105 132 107 . 189 59 82 100 88 15 77 . 44 93 . 139 104 87 24 22 14 46 94 Received Heat Transfer 3538 | . 60 159 288 162 108 93 . 63 . . 48 . 215 298 . 207 621 . . 87 . . 132 18 646 333 Effects 9 | . . . . . . . . 3 . . 3 . . . . . . . . 2 1 . . . . . Shutdowns 2 | . . . . . . . . 1 . . . . . . . . . . . 1 . . . . . . Energy Bleed 2 | . . . . . . . . . . . . . . . . . . . . 1 1 . . . . . Interference 3 | . . . . . . . . . . . 3 . . . . . . . . . . . . . . . Matter Decay 1 | . . . . . . . . 1 . . . . . . . . . . . . . . . . . . Damage (minor) 1 | . . . . . . . . 1 . . . . . . . . . . . . . . . . . . Siege Activations 56 | . . . . . . . . . . . . . . 1 . . 7 1 1 9 2 . 3 4 20 8 Total Turns 1248 | . . . . . . . . . . . . . . 25 . . 123 371 28 93 13 . 36 49 400 110 Longest Duration 371 | . . . . . . . . . . . . . . 25 . . 37 371 28 23 12 . 18 29 63 29 Martial Activations . | . . . . . . . . . . . . . . . . . . . . . . . . . . . Shielding Activations . | . . . . . . . . . . . . . . . . . . . . . . . . . . . Robots Disrupted . | . . . . . . . . . . . . . . . . . . . . . . . . . . . Combat Hostiles . | . . . . . . . . . . . . . . . . . . . . . . . . . . . Robots Corrupted . | . . . . . . . . . . . . . . . . . . . . . . . . . . . Combat Hostiles . | . . . . . . . . . . . . . . . . . . . . . . . . . . . Parts Fried 3 | . . . . . . . . . . . . . . . . . . . . . . . 3 . . . Impact Corruptions . | . . . . . . . . . . . . . . . . . . . . . . . . . . . Robots Melted . | . . . . . . . . . . . . . . . . . . . . . . . . . . . Combat Hostiles . | . . . . . . . . . . . . . . . . . . . . . . . . . . . Parts Melted 1 | . 1 . . . . . . . . . . . . . . . . . . . . . . . . . Heat Transferred 1594 | . 50 450 . . . . . . . . . . . . 375 . 161 . 50 259 . 125 . . 124 . Parts Sabotaged . | . . . . . . . . . . . . . . . . . . . . . . . . . . . Parts Stolen . | . . . . . . . . . . . . . . . . . . . . . . . . . . . Parts Stripped . | . . . . . . . . . . . . . . . . . . . . . . . . . . . Power Chain Reactions 1 | . . . . . . . . . . . . . . . . . . . . . . . . . 1 . Alert | -11 -10 -10 -8 -7 -7 -7 -7 -6 -6 -6 -6 -5 -5 -5 -5 -4 -4 -4 -4 -4 -4 -4 -4 -3 -3 -2 ------- Run | Yrd Mat Sub Mat Fac Low Low Zio Pro Fac Was Fac Fac Upp Upp Zhi Pro Fac Was Fac Ext Cet Arc Hub Res Tes Res Maximum Alert Level 4 | . 1 . 3 1 . . . . . . 1 . . . . . 3 1 . 2 2 1 3 2 3 4 Low Security (%) 56 | 100 92 . 19 48 . . . . 100 100 96 100 . . . . 38 43 100 73 . 80 25 . 51 . Level 1 21 | . 7 . 8 51 . . . . . . 3 . . . . . 39 56 . 4 16 19 32 96 22 8 Level 2 18 | . . . 64 . . . . . . . . . . . . . 16 . . 21 83 . 38 3 17 68 Level 3 3 | . . . 6 . . . . . . . . . . . . . 5 . . . . . 2 . 8 20 Level 4 . | . . . . . . . . . . . . . . . . . . . . . . . . . . 2 Level 5 . | . . . . . . . . . . . . . . . . . . . . . . . . . . . High Security . | . . . . . . . . . . . . . . . . . . . . . . . . . . . Max Security . | . . . . . . . . . . . . . . . . . . . . . . . . . . . Peak Influence 1191 | 20 254 . 731 315 . . . . 150 21 209 70 . . . . 795 318 150 650 533 338 796 413 753 1191 Initial 420 | . . . 143 258 . . . . 150 9 . 70 . . . . 150 276 60 66 364 190 . 413 160 420 Average 224 | 2 46 . 485 179 . . . . 55 5 90 20 . . . . 286 210 44 144 460 83 315 324 278 543 Influence Increases 14751 | 50 616 293 1708 735 101 448 . 365 294 73 479 131 195 305 15 220 1436 152 254 1434 387 268 1375 351 1601 1465 Destroy 0b10 Robot/C 7200 | . 260 140 780 440 60 400 . 300 100 20 280 40 160 260 . 160 580 . 40 640 160 80 340 180 1080 700 Destroy 0b10 Robot/NC 660 | 50 35 . 75 50 10 5 . 15 10 . 20 10 15 5 15 15 65 . 25 40 10 30 55 15 50 40 Destroy Leader 1262 | . 50 10 168 116 10 40 . 50 20 . 72 10 20 40 . 30 134 . 10 44 . . 84 64 126 164 Allied During Kill 1742 | . . 143 564 . 6 3 . . . . . . . . . . . . . 467 170 110 279 . . . Successful Hack 214 | . 25 . . 73 . . . . . . 45 12 . . . . 26 . . 16 . . 5 . 12 . Disable Machine 960 | . 105 . 30 15 . . . . . . 15 30 . . . . 105 . 75 120 15 30 165 45 150 60 Destroy Structure 1978 | . 141 . 46 26 . . . . 14 53 17 14 . . . . 376 152 104 92 32 18 342 32 138 381 Advance Influence 300 | . . . . . . . . . 150 . . . . . . . 150 . . . . . . . . . Partial Spotted 30 | . . . . . . . . . . . . . . . . . . . . . . . 15 . . 15 Lose Combat Pursuer 405 | . . . 45 15 15 . . . . . 30 15 . . . 15 . . . 15 . . 90 15 45 105 Influence Decreases 13580 | 50 380 252 1416 1225 180 414 34 365 268 99 336 274 195 249 71 220 645 857 204 920 560 745 587 853 1139 1042 Entered New Map 2782 | . . 114 134 311 30 . 34 . . 17 . 73 . . 56 . . 515 26 70 286 287 . 375 126 328 Time Decay 8488 | 50 380 128 652 604 110 384 . 365 268 82 326 201 175 229 15 210 595 302 178 500 254 418 377 458 763 464 Lost Part 680 | . . 10 . . . . . . . . . . 20 20 . 10 40 40 . . . . 30 20 240 250 Lost Ally 1030 | . . . 480 10 40 30 . . . . 10 . . . . . 10 . . 200 20 40 180 . 10 . Purge Threat 600 | . . . 150 300 . . . . . . . . . . . . . . . 150 . . . . . . Squads Dispatched 80 | . 1 . 6 8 . 1 . . 2 . 5 2 . . . . 12 . 3 1 . . 7 6 13 13 Investigation 11 | . 1 . . . . . . . . . 2 . . . . . 3 . . . . . 2 2 . 1 Extermination 26 | . . . . 5 . . . . 1 . 3 1 . . . . 2 . 2 . . . 1 . 8 3 Reinforcement 23 | . . . 2 2 . . . . . . . 1 . . . . 3 . 1 . . . 4 4 4 2 Assault 8 | . . . 3 . . 1 . . . . . . . . . . 1 . . 1 . . . . 1 1 Garrison 12 | . . . 1 1 . . . . 1 . . . . . . . 3 . . . . . . . . 6 Intercept . | . . . . . . . . . . . . . . . . . . . . . . . . . . . Searches Triggered . | . . . . . . . . . . . . . . . . . . . . . . . . . . . Construction Impeded 3 | . . . . . . . . . . . . . . . . . 1 . 1 . . . 1 . . . Haulers Reinforced 2 | . . . . . . . . . . . . . . . . . . . . . . . . 1 1 . Active Scanning Responses . | . . . . . . . . . . . . . . . . . . . . . . . . . . . Cargo Convoy Interrupts . | . . . . . . . . . . . . . . . . . . . . . . . . . . . Stealth | -11 -10 -10 -8 -7 -7 -7 -7 -6 -6 -6 -6 -5 -5 -5 -5 -4 -4 -4 -4 -4 -4 -4 -4 -3 -3 -2 --------- Run | Yrd Mat Sub Mat Fac Low Low Zio Pro Fac Was Fac Fac Upp Upp Zhi Pro Fac Was Fac Ext Cet Arc Hub Res Tes Res Distress Signals 26 | . 1 . 4 2 . . . . . . . . . . . 1 2 . . 1 3 . 2 6 . 4 Communications Jammed . | . . . . . . . . . . . . . . . . . . . . . . . . . . . Distress Signals . | . . . . . . . . . . . . . . . . . . . . . . . . . . . Times Spotted 551 | . 21 36 42 28 9 20 . 15 7 6 24 7 11 13 . 11 36 6 2 41 10 25 36 22 68 55 Peak Tracking Total 13 | . 3 3 6 3 4 5 . 4 4 2 4 2 8 5 . 3 5 2 2 5 5 1 7 6 6 13 Tactical Retreats 20 | . . . 3 1 1 . . . . . 2 1 . . . 1 . . . 1 . . 3 1 2 4 Traps | -11 -10 -10 -8 -7 -7 -7 -7 -6 -6 -6 -6 -5 -5 -5 -5 -4 -4 -4 -4 -4 -4 -4 -4 -3 -3 -2 ------- Run | Yrd Mat Sub Mat Fac Low Low Zio Pro Fac Was Fac Fac Upp Upp Zhi Pro Fac Was Fac Ext Cet Arc Hub Res Tes Res Traps Triggered 14 | . 1 . . . . . . . 1 . 3 . . . . . 2 . 1 1 . . . . 4 1 Indirectly . | . . . . . . . . . . . . . . . . . . . . . . . . . . . Trap Hack Attempts . | . . . . . . . . . . . . . . . . . . . . . . . . . . . Triggered . | . . . . . . . . . . . . . . . . . . . . . . . . . . . Disarmed . | . . . . . . . . . . . . . . . . . . . . . . . . . . . Reprogrammed . | . . . . . . . . . . . . . . . . . . . . . . . . . . . Reused 1 | . . . . . . . . . . . . . . . . 1 . . . . . . . . . . Traps Extracted . | . . . . . . . . . . . . . . . . . . . . . . . . . . . Installed 2 | . . . . . . . . . . . . . . . . 2 . . . . . . . . . . Triggered 1 | . . . . . . . . . . . . . . . . 1 . . . . . . . . . . Most Traps Carried 3 | . . 2 . . . . . . . . . . . 3 3 3 . . . . . . . . . . Machines | -11 -10 -10 -8 -7 -7 -7 -7 -6 -6 -6 -6 -5 -5 -5 -5 -4 -4 -4 -4 -4 -4 -4 -4 -3 -3 -2 ---------- Run | Yrd Mat Sub Mat Fac Low Low Zio Pro Fac Was Fac Fac Upp Upp Zhi Pro Fac Was Fac Ext Cet Arc Hub Res Tes Res Machines Disabled 72 | . 7 2 2 1 1 1 . . . . 1 2 . . . . 7 . 5 9 1 2 11 3 13 4 Max in Single Turn 5 | . 3 1 1 1 1 1 . . . . 1 1 . . . . 3 . 5 1 1 1 5 1 1 1 Garrison Access 5 | . . . 1 3 . . . . . . . . . . . . . . . . . . . 1 . . Network Hub 1 | . . . . . . . . . . . . . . . . . . . . . . . 1 . . . Machines Repaired . | . . . . . . . . . . . . . . . . . . . . . . . . . . . Machines Dismantled . | . . . . . . . . . . . . . . . . . . . . . . . . . . . Machines Sabotaged . | . . . . . . . . . . . . . . . . . . . . . . . . . . . Overloaded Fab Kills . | . . . . . . . . . . . . . . . . . . . . . . . . . . . Hacking | -11 -10 -10 -8 -7 -7 -7 -7 -6 -6 -6 -6 -5 -5 -5 -5 -4 -4 -4 -4 -4 -4 -4 -4 -3 -3 -2 --------- Run | Yrd Mat Sub Mat Fac Low Low Zio Pro Fac Was Fac Fac Upp Upp Zhi Pro Fac Was Fac Ext Cet Arc Hub Res Tes Res Machines Accessed 82 | . 9 2 4 11 1 2 . . 4 . 9 7 2 . 4 . 7 . 2 5 1 . 3 2 5 2 Terminals 48 | . 7 . 3 7 . . . . 2 . 6 4 1 . . . 4 . 1 5 1 . 3 1 2 1 Fabricators 3 | . . . . . . . . . 1 . . 1 . . . . 1 . . . . . . . . . Repair Stations 6 | . 1 . . . . . . . . . 1 1 . . . . . . . . . . . . 2 1 Recycling Units 5 | . 1 . . 1 . . . . . . 2 1 . . . . . . . . . . . . . . Scanalyzers . | . . . . . . . . . . . . . . . . . . . . . . . . . . . Garrison Access 10 | . . . 1 3 . . . . 1 . . . . . . . 2 . 1 . . . . 1 1 . Total Hacks 194 | . 26 5 9 25 6 2 . . 6 . 15 14 2 . 16 . 17 . 3 17 1 . 8 2 17 3 Successful 97 | . 16 5 3 18 6 2 . . 1 . 4 8 2 . 16 . 4 . . 6 . . 1 . 5 . Failed 96 | . 9 . 6 7 . . . . 5 . 11 6 . . . . 13 . 3 11 1 . 7 2 12 3 Catastrophic 17 | . . . 1 1 . . . . 1 . 4 2 . . . . 1 . 1 . 1 . 2 1 1 1 Database Lockouts 1 | . 1 . . . . . . . . . . . . . . . . . . . . . . . . . Manual 91 | . 16 . 4 13 . . . . 3 . 10 9 . . . . 5 . . 9 1 . 9 1 10 1 Terminals 118 | . 22 . 8 19 . . . . 3 . 10 9 1 . . . 7 . 1 17 1 . 8 1 10 1 Fabricators 5 | . . . . . . . . . 1 . . 1 . . . . 3 . . . . . . . . . Repair Stations 12 | . 2 . . . . . . . . . 2 2 . . . . . . . . . . . . 4 2 Recycling Units 8 | . 2 . . 1 . . . . . . 3 2 . . . . . . . . . . . . . . Scanalyzers . | . . . . . . . . . . . . . . . . . . . . . . . . . . . Garrison Access 21 | . . . 1 5 . . . . 2 . . . . . . . 7 . 2 . . . . 1 3 . Terminal Hacks 50 | . 6 5 2 6 6 2 . . . . . 1 2 . 16 . . . . 4 . . . . . . Record 15 | . . 4 . . 6 . . . . . . . 1 . 4 . . . . . . . . . . . Part Schematic 5 | . . . . . . . . . . . . 1 . . 4 . . . . . . . . . . . Robot Analysis 9 | . 2 . . 3 . . . . . . . . . . 4 . . . . . . . . . . . Prototype ID Bank 9 | . 2 . . . . . . . . . . . . . 4 . . . . 3 . . . . . . Open Door 3 | . . . . . . 2 . . . . . . 1 . . . . . . . . . . . . . Alert Level 1 | . . . 1 . . . . . . . . . . . . . . . . . . . . . . . Unreport Threat 4 | . . . 1 2 . . . . . . . . . . . . . . . 1 . . . . . . Locate Traps 1 | . 1 . . . . . . . . . . . . . . . . . . . . . . . . . Dispatch Records 1 | . 1 . . . . . . . . . . . . . . . . . . . . . . . . . Registered Components 1 | . . . . 1 . . . . . . . . . . . . . . . . . . . . . . Proto ID Catalog 1 | . . 1 . . . . . . . . . . . . . . . . . . . . . . . . Fabricator Hacks 2 | . . . . . . . . . 1 . . . . . . . 1 . . . . . . . . . Network Status 1 | . . . . . . . . . 1 . . . . . . . . . . . . . . . . . Load Schematic 1 | . . . . . . . . . . . . . . . . . 1 . . . . . . . . . Repair Station Hacks 6 | . 1 . . . . . . . . . 1 2 . . . . . . . . . . . . 2 . Scan Component 3 | . . . . . . . . . . . 1 1 . . . . . . . . . . . . 1 . Repair 2 | . . . . . . . . . . . . 1 . . . . . . . . . . . . 1 . Refit 1 | . 1 . . . . . . . . . . . . . . . . . . . . . . . . . Recycling Unit Hacks 5 | . 1 . . 1 . . . . . . 1 2 . . . . . . . . . . . . . . Retrieve Components 5 | . 1 . . 1 . . . . . . 1 2 . . . . . . . . . . . . . . Scanalyzer . | . . . . . . . . . . . . . . . . . . . . . . . . . . . Garrison Access Hacks 4 | . . . 1 3 . . . . . . . . . . . . . . . . . . . . . . Seal Access 4 | . . . 1 3 . . . . . . . . . . . . . . . . . . . . . . Unauthorized Hacks 30 | . 8 . . 8 . . . . . . 2 3 . . . . 3 . . 2 . . 1 . 3 . Terminals 30 | . 8 . . 8 . . . . . . 2 3 . . . . 3 . . 2 . . 1 . 3 . Assimilate 5 | . 1 . . 1 . . . . . . 1 . . . . . 1 . . . . . . . 1 . Botnet 10 | . 1 . . 2 . . . . . . 1 2 . . . . 1 . . 1 . . 1 . 1 . Operators 1 | . 1 . . . . . . . . . . . . . . . . . . . . . . . . . Skim 14 | . 5 . . 5 . . . . . . . 1 . . . . 1 . . 1 . . . . 1 . Fabricators . | . . . . . . . . . . . . . . . . . . . . . . . . . . . Repair Stations . | . . . . . . . . . . . . . . . . . . . . . . . . . . . Recycling Units . | . . . . . . . . . . . . . . . . . . . . . . . . . . . Scanalyzers . | . . . . . . . . . . . . . . . . . . . . . . . . . . . Garrison Access . | . . . . . . . . . . . . . . . . . . . . . . . . . . . Data Cores Recovered 1 | . . . . . . . . . . . . . . . . . . . . . . . 1 . . . Used . | . . . . . . . . . . . . . . . . . . . . . . . . . . . Hacking Detections 59 | . 6 . 3 10 . . . . 2 . 8 5 . . . . 7 . 2 5 1 . 3 2 3 2 Full Trace Events 4 | . . . . . . . . . . . . . . . . . 2 . . . . . 2 . . . Feedback Events 1 | . . . . . . . . . . . . . . . . . 1 . . . . . . . . . Corruption 1 | . . . . . . . . . . . . . . . . . 1 . . . . . . . . . Feedback Blocked . | . . . . . . . . . . . . . . . . . . . . . . . . . . . Robot Schematics Acquired 7 | . . . . . . . 4 . . . . . . . . . . . . . . . . . 3 . Robots Built . | . . . . . . . . . . . . . . . . . . . . . . . . . . . Authchips . | . . . . . . . . . . . . . . . . . . . . . . . . . . . Time . | . . . . . . . . . . . . . . . . . . . . . . . . . . . Total Robot Build Rating . | . . . . . . . . . . . . . . . . . . . . . . . . . . . Part Schematics Acquired 30 | . . . . . . . 14 . . . . 1 . . 4 . . . . . . . . . 11 . Parts Built . | . . . . . . . . . . . . . . . . . . . . . . . . . . . Authchips . | . . . . . . . . . . . . . . . . . . . . . . . . . . . Time . | . . . . . . . . . . . . . . . . . . . . . . . . . . . Total Part Build Rating . | . . . . . . . . . . . . . . . . . . . . . . . . . . . Part Studies Acquired . | . . . . . . . . . . . . . . . . . . . . . . . . . . . Parts Repaired 2 | . . . . . . . . . . . . 1 . . . . . . . . . . . . 1 . Time 115 | . . . . . . . . . . . . 53 . . . . . . . . . . . . 62 . Parts Recycled . | . . . . . . . . . . . . . . . . . . . . . . . . . . . Recycled Matter . | . . . . . . . . . . . . . . . . . . . . . . . . . . . Retrieved Matter . | . . . . . . . . . . . . . . . . . . . . . . . . . . . Retrieved Components 10 | . . . . 6 . . . . . . 1 3 . . . . . . . . . . . . . . Parts Scanalyzed . | . . . . . . . . . . . . . . . . . . . . . . . . . . . Part Schematics Acquired . | . . . . . . . . . . . . . . . . . . . . . . . . . . . Parts Damaged . | . . . . . . . . . . . . . . . . . . . . . . . . . . . Bothacking | -11 -10 -10 -8 -7 -7 -7 -7 -6 -6 -6 -6 -5 -5 -5 -5 -4 -4 -4 -4 -4 -4 -4 -4 -3 -3 -2 ------------ Run | Yrd Mat Sub Mat Fac Low Low Zio Pro Fac Was Fac Fac Upp Upp Zhi Pro Fac Was Fac Ext Cet Arc Hub Res Tes Res Used RIF Installer . | . . . . . . . . . . . . . . . . . . . . . . . . . . . Robots Hacked . | . . . . . . . . . . . . . . . . . . . . . . . . . . . Non-combat . | . . . . . . . . . . . . . . . . . . . . . . . . . . . Combat . | . . . . . . . . . . . . . . . . . . . . . . . . . . . Robot Hacks Applied . | . . . . . . . . . . . . . . . . . . . . . . . . . . . Relay Couplers Released 1 | . . . . . . . . . . . . . . . . . . . . . . . . 1 . . Machine Destruction 1 | . . . . . . . . . . . . . . . . . . . . . . . . 1 . . Fabnet Peak Effective % . | . . . . . . . . . . . . . . . . . . . . . . . . . . . Robots Rewired 23 | . . . . . 2 1 . . . . . . . . . . . . . 20 . . . . . . Allies Hacked . | . . . . . . . . . . . . . . . . . . . . . . . . . . . Hacks Repelled . | . . . . . . . . . . . . . . . . . . . . . . . . . . . Allies | -11 -10 -10 -8 -7 -7 -7 -7 -6 -6 -6 -6 -5 -5 -5 -5 -4 -4 -4 -4 -4 -4 -4 -4 -3 -3 -2 -------- Run | Yrd Mat Sub Mat Fac Low Low Zio Pro Fac Was Fac Fac Upp Upp Zhi Pro Fac Was Fac Ext Cet Arc Hub Res Tes Res Total Allies 73 | . 1 35 . 1 2 1 . . . . 1 . . . . . 1 . . 25 5 . . . 1 . Largest Group 28 | . 1 28 28 1 3 2 . . . . 1 . . . . . 1 . . 15 18 14 10 . 1 . Highest-Rated Group 1081 | . 10 524 524 26 88 58 . . . . 10 . . . . . 10 . . 698 1081 917 537 . 26 . Highest-Rated Ally 159 | . 10 20 20 26 31 32 . . . . 10 . . . . . 10 . . 159 159 159 96 . 26 . Total Orders 53 | . . 4 3 8 2 7 . . . . 1 . . . . . 3 . . 5 16 . . . 4 . STAY 33 | . . 2 2 4 1 4 . . . . 1 . . . . . 2 . . 2 13 . . . 2 . FOLLOW 20 | . . 2 1 4 1 3 . . . . . . . . . . 1 . . 3 3 . . . 2 . Ally Attacks 509 | . . 102 197 . 15 2 . . . . . . . . . . . . . 71 34 20 68 . . . Total Damage 10949 | . . 1404 3083 . 125 65 . . . . . . . . . . . . . 2149 1144 749 2230 . . . Kills 73 | . . 14 26 . 2 . . . . . . . . . . . . . . 10 6 3 12 . . . Allies Corrupted 3 | . . . . . . 1 . . . . . . . . . . . . . 2 . . . . . . Allies Melted 3 | . . 1 . . . . . . . . . . . . . . . . . 1 . . 1 . . . Intel | -11 -10 -10 -8 -7 -7 -7 -7 -6 -6 -6 -6 -5 -5 -5 -5 -4 -4 -4 -4 -4 -4 -4 -4 -3 -3 -2 ------- Run | Yrd Mat Sub Mat Fac Low Low Zio Pro Fac Was Fac Fac Upp Upp Zhi Pro Fac Was Fac Ext Cet Arc Hub Res Tes Res Active Infowar (turns) 31581 | 56 1989 331 . 1334 1631 919 230 1789 677 292 1577 702 1709 808 351 1297 1887 671 835 2452 544 2029 901 1151 4257 1162 Optics 20756 | . . . . . . . . . . . . 702 1709 808 351 1297 1887 671 835 2452 544 2029 901 1151 4257 1162 Sensors 16411 | . . . . 1255 1631 919 230 1789 677 292 1321 594 36 . . . 658 . 804 1039 . . 494 971 2614 1087 Terrain 986 | . . . . 79 . . . . . . 256 113 . . . . 538 . . . . . . . . . Structural 2 | . . . . . . . . . . . . . . . . . . . . . . . 2 . . . Seismic 2376 | 56 1989 331 . . . . . . . . . . . . . . . . . . . . . . . . Machine Analysis 696 | . . . . . . . . . . . . . . . . . . . . . . . . . . 696 Cloaking 39 | . . . . . . . . . . . . . . . . . . . . . . . . . . 39 Robot Analysis Total 9 | . 2 . . 3 . . . . . . . . . . 4 . . . . . . . . . . . Derelict Logs Recovered 15 | . . 2 . . 3 2 1 2 . . . . 1 1 . 3 . . . . . . . . . . Drone Launches . | . . . . . . . . . . . . . . . . . . . . . . . . . . . Drone Recoveries . | . . . . . . . . . . . . . . . . . . . . . . . . . . . Exploration | -11 -10 -10 -8 -7 -7 -7 -7 -6 -6 -6 -6 -5 -5 -5 -5 -4 -4 -4 -4 -4 -4 -4 -4 -3 -3 -2 ------------- Run | Yrd Mat Sub Mat Fac Low Low Zio Pro Fac Was Fac Fac Upp Upp Zhi Pro Fac Was Fac Ext Cet Arc Hub Res Tes Res Turns Passed 44563 | 267 1992 7379 2413 1945 1940 2089 1398 1817 677 292 1585 702 1709 808 351 1297 1887 671 835 2452 544 2029 901 1151 4257 1175 Spaces Moved 21434 | 65 993 4905 728 971 1054 1193 828 1004 349 126 729 355 924 390 174 724 812 157 335 1091 255 215 380 531 1706 440 Core 15 | 3 . . . . . . . . . . . . . . . . . . . . . . . . . 12 Treads 16639 | 62 993 184 674 971 1054 1193 828 1004 349 126 729 355 924 390 174 724 812 157 335 1091 255 215 380 531 1706 423 Legs . | . . . . . . . . . . . . . . . . . . . . . . . . . . . Wheels 4775 | . . 4721 54 . . . . . . . . . . . . . . . . . . . . . . . Hover . | . . . . . . . . . . . . . . . . . . . . . . . . . . . Flight 5 | . . . . . . . . . . . . . . . . . . . . . . . . . . 5 Fastest Speed 40 | 50 160 95 110 160 160 162 162 167 165 170 168 167 166 165 165 162 160 160 160 160 160 160 160 160 152 40 Average Speed 150 | 154 160 107 160 160 162 162 166 167 168 170 169 167 167 166 165 163 162 160 160 160 160 160 160 160 161 150 Slowest Speed 320 | 160 160 240 249 162 246 162 167 167 170 170 170 168 168 247 165 165 163 160 160 160 160 160 160 160 320 320 Overloaded Moves . | . . . . . . . . . . . . . . . . . . . . . . . . . . . Propulsion Burnouts . | . . . . . . . . . . . . . . . . . . . . . . . . . . . Robots Hopped . | . . . . . . . . . . . . . . . . . . . . . . . . . . . Potential Cave-ins 34 | . 2 6 . . . . . . . . . 2 1 . . . 10 . . 3 1 . . . 3 6 Cave-ins Triggered . | . . . . . . . . . . . . . . . . . . . . . . . . . . . Teleports 1 | . . . . . . . . . . . . . . . . . . . . . . . . . . 1 Exploration Rate (%) 58 | 5 98 96 59 28 97 97 80 96 14 74 16 10 90 55 61 83 25 78 12 89 78 83 38 21 94 14 Regions Visited 26 Branch Regions 14 Pre-discovered Areas 16 | . 1 2 . 4 . . 4 1 . . . . . . 3 1 . . . . . . . . . . Known Exits Taken 18 | . . . . 1 1 1 1 1 . . 1 1 1 1 1 1 . . 1 1 1 1 1 1 1 . Unknown Exits Taken 4 | 1 1 1 1 . . . . . . . . . . . . . . . . . . . . . . . Scrap Searched 32 | . . 13 . . 3 4 4 2 . . . . 3 1 . 2 . . . . . . . . . . Spaces Dug 554 | . 39 271 7 17 . 1 . 10 5 11 10 4 1 . . 37 37 . 7 8 . . 22 9 28 30 Terrain Destroyed 3008 | . 147 1080 49 25 11 36 . 111 12 152 15 7 41 55 . 99 230 186 56 61 7 14 249 17 100 248 Melee 144 | . 6 37 5 15 . 1 . 1 5 . 10 4 1 . . 7 7 . 7 2 . . 11 4 14 7 Projectile 437 | . 10 . 4 10 . 3 . 2 . 1 5 3 . 9 . 1 90 2 17 58 7 14 53 11 74 63 AOE 2420 | . 131 1043 40 . 11 32 . 108 7 151 . . 40 46 . 91 133 184 32 . . . 185 . 8 178 Terrain Rammed . | . . . . . . . . . . . . . . . . . . . . . . . . . . . Walls Destroyed . | . . . . . . . . . . . . . . . . . . . . . . . . . . . Machines Disabled . | . . . . . . . . . . . . . . . . . . . . . . . . . . . Actions | -11 -10 -10 -8 -7 -7 -7 -7 -6 -6 -6 -6 -5 -5 -5 -5 -4 -4 -4 -4 -4 -4 -4 -4 -3 -3 -2 --------- Run | Yrd Mat Sub Mat Fac Low Low Zio Pro Fac Was Fac Fac Upp Upp Zhi Pro Fac Was Fac Ext Cet Arc Hub Res Tes Res Total 31218 | 187 1232 6555 1894 1256 1242 1317 849 1099 405 178 1014 436 1055 487 217 797 1177 535 581 1662 357 1852 560 732 2788 754 Wait 6621 | 90 112 1167 1052 124 79 41 4 46 14 18 206 30 70 41 . 10 174 342 193 310 46 1576 76 105 554 141 Move 21410 | 64 992 4904 727 970 1053 1192 827 1003 349 125 728 354 923 389 173 723 812 156 334 1090 254 214 379 530 1705 440 Hop . | . . . . . . . . . . . . . . . . . . . . . . . . . . . Pick Up 230 | 3 10 29 20 8 5 3 6 1 3 3 6 6 2 5 4 4 12 . 4 8 9 3 8 11 46 11 Fast Attach 224 | 7 . 3 10 2 5 3 . . 4 2 5 7 16 2 7 7 16 1 4 11 6 9 10 4 69 14 Attach 109 | . 1 3 4 6 1 . . . 2 2 1 3 2 4 1 2 9 1 5 . 2 1 6 5 34 14 Detach 31 | . 2 . . . . . . . . . . 1 2 . . 2 5 . 1 . 2 1 2 2 8 3 Swap 414 | . 25 30 12 45 15 19 6 14 7 2 14 7 3 8 2 6 22 2 8 17 11 8 18 16 81 16 Drop 359 | . 4 26 20 11 10 9 5 1 6 6 11 10 15 3 9 12 22 1 4 19 13 12 12 13 86 19 Fire 1128 | 23 73 180 42 68 20 27 . 31 5 20 30 8 5 26 16 15 87 32 12 63 14 28 32 38 145 88 Melee 484 | . 13 213 7 21 16 2 1 3 14 . 12 10 17 9 5 14 16 . 16 5 . . 17 8 57 8 Ram . | . . . . . . . . . . . . . . . . . . . . . . . . . . . Kick . | . . . . . . . . . . . . . . . . . . . . . . . . . . . Crush 4 | . . . . 1 . . . . . . . . . . . . 2 . . . . . . . 1 . Escape Stasis 2 | . . . . . . . . . . . . . . . . . . . . . . . . . 2 . Rewire 198 | . . . . . 38 21 . . . . . . . . . . . . . 139 . . . . . . Trap 2 | . . . . . . . . . . . . . . . . 2 . . . . . . . . . . Miscellaneous 2 | . . . . . . . . . 1 . 1 . . . . . . . . . . . . . . . Route ------- -11/Scrapyard -10/Materials (discovered 6 exits: *Mat x3 / [*Min x2] / *Sub) -10/Subcaves (discovered 3 exits: *Mat x2 / [*Rec]) -8/Materials -7/Factory (discovered 6 exits: *Fac x4 / *Low x2) -7/Lower Caves -7/Lower Caves (discovered 2 exits: *Fac / *Zio) -7/Zion (discovered 2 exits: Dee / *Pro) -6/Proximity Caves -6/Factory (discovered 3 exits: Fac x2 / Low) -6/Waste -6/Factory -5/Factory -5/Upper Caves -5/Upper Caves (discovered 2 exits: *Fac / *Zhi) -5/Zhirov -4/Proximity Caves -4/Factory (discovered 3 exits: *Res / *Upp x2) -4/Waste -4/Factory -4/Extension (discovered 2 exits: *Res / *Cet) -4/Cetus (discovered 2 exits: *Res / *Arc) -4/Archives (discovered 3 exits: *Res / *Hub x2) -4/Hub_04(d) (discovered 3 exits: *Res x3) -3/Research (discovered 3 exits: *Res x2 / *Tes) -3/Testing -2/Research History --------- Turn | Location | Event 11 | -11/Scrapyard | Discovered new exit (range 15) 268 | -11/Scrapyard | Entered Materials 307 | -10/Materials | Build established: Mutant 415 | -10/Materials | Discovered new exit (range 16) 768 | -10/Materials | Derelicts attacked the area 1001 | -10/Materials | Discovered new exit (range 13) 1176 | -10/Materials | Discovered new exit (range 9) 1251 | -10/Materials | Central database locked down 1499 | -10/Materials | Identified exit to Materials 1541 | -10/Materials | Learned Storage emergency access door positions 1597 | -10/Materials | Learned Storage security intel 1607 | -10/Materials | Learned Storage terminal intel 1628 | -10/Materials | Learned 4 Subcaves zone layouts 1661 | -10/Materials | Learned Storage stockpile data 1810 | -10/Materials | Discovered exit to Materials (range 16) 2240 | -10/Materials | Discovered new exit (range 10) 2260 | -10/Materials | Entered Subcaves 2260 | -10/Subcaves | Accompanied by 1 ally 2261 | -10/Subcaves | Approached by a straggling Scientist 2330 | -10/Subcaves | Discovered new exit (range 7) 2502 | -10/Subcaves | Shifting Twisted Machinery released Battle Rifle 2513 | -10/Subcaves | Shifting Twisted Machinery released Shrapnel Trap 2878 | -10/Subcaves | Shifting Twisted Machinery released Sub. Laser 2878 | -10/Subcaves | Shifting Twisted Machinery released Battle Cannon 2958 | -10/Subcaves | Visited triangular shrine 2967 | -10/Subcaves | Found Prototype Device 2968 | -10/Subcaves | Identified V3-11A's Pendant 3048 | -10/Subcaves | Approached by friendly Subdweller 3055 | -10/Subcaves | A swath of the cavern ceiling suddenly collapsed 3324 | -10/Subcaves | Visited Clippyterm 3328 | -10/Subcaves | Learned Research security intel 3328 | -10/Subcaves | Learned 40 Factory zone layouts 3433 | -10/Subcaves | Ambushed by Subdweller buried in earth 3436 | -10/Subcaves | Befriended Subdweller 3491 | -10/Subcaves | Befriended Subdweller 3496 | -10/Subcaves | Befriended Subdweller 3557 | -10/Subcaves | Learned location of Zion (-7) 3557 | -10/Subcaves | Met a Zionite searching for "candidates" 3576 | -10/Subcaves | Befriended Subdweller 3584 | -10/Subcaves | Shifting Twisted Machinery released Scrap Shield 3591 | -10/Subcaves | Shifting Twisted Machinery released Scrap Shield 3601 | -10/Subcaves | Befriended Subdweller 3601 | -10/Subcaves | Befriended Subdweller 3606 | -10/Subcaves | Befriended Subdweller 3871 | -10/Subcaves | Befriended Subdweller 4051 | -10/Subcaves | Befriended Subdweller 4131 | -10/Subcaves | Visited 4L-MR0's lab 4306 | -10/Subcaves | Ambushed by Subdweller buried in earth 4311 | -10/Subcaves | Befriended Subdweller 4382 | -10/Subcaves | Ambushed by Subdweller buried in earth 4386 | -10/Subcaves | Befriended Subdweller 4421 | -10/Subcaves | Befriended Subdweller 4537 | -10/Subcaves | Ambushed by Subdweller buried in earth 4644 | -10/Subcaves | Ambushed by Subdweller buried in earth 4646 | -10/Subcaves | Befriended Subdweller 4710 | -10/Subcaves | Ambushed by Subdweller buried in earth 4711 | -10/Subcaves | Befriended Subdweller 4779 | -10/Subcaves | Ambushed by Subdweller buried in earth 4781 | -10/Subcaves | Befriended Subdweller 4875 | -10/Subcaves | Ambushed by Subdweller buried in earth 4875 | -10/Subcaves | Ambushed by Subdweller buried in earth 4876 | -10/Subcaves | Befriended Subdweller 4876 | -10/Subcaves | Befriended Subdweller 5197 | -10/Subcaves | Ambushed by Subdweller buried in earth 5201 | -10/Subcaves | Befriended Subdweller 5374 | -10/Subcaves | Ambushed by Subdweller buried in earth 5376 | -10/Subcaves | Befriended Subdweller 5376 | -10/Subcaves | Ambushed by Subdweller buried in earth 5381 | -10/Subcaves | Befriended Subdweller 5556 | -10/Subcaves | Ambushed by Subdweller buried in earth 5751 | -10/Subcaves | Befriended Subdweller 5766 | -10/Subcaves | Befriended Subdweller 5984 | -10/Subcaves | Ambushed by Subdweller buried in earth 5986 | -10/Subcaves | Befriended Subdweller 6104 | -10/Subcaves | Ambushed by angry Subdweller bent on revenge 6106 | -10/Subcaves | Befriended Subdweller 6166 | -10/Subcaves | Befriended Subdweller 6177 | -10/Subcaves | Ambushed by Subdweller buried in earth 6336 | -10/Subcaves | Befriended Subdweller 6364 | -10/Subcaves | Discovered new exit (range 13) 6387 | -10/Subcaves | Learned location of Storage (-8) 6389 | -10/Subcaves | A swath of the cavern ceiling suddenly collapsed 6398 | -10/Subcaves | Learned Materials stockpile data 6478 | -10/Subcaves | Disturbed a concealed Subdweller 6481 | -10/Subcaves | Befriended Subdweller 6545 | -10/Subcaves | Discovered new exit (range 15) 6554 | -10/Subcaves | Lost 4 allies 6663 | -10/Subcaves | Core integrity fell below 50% 6749 | -10/Subcaves | Ambushed by angry Subdweller bent on revenge 6751 | -10/Subcaves | Befriended Subdweller 7080 | -10/Subcaves | A Subdweller sparked back to life 7080 | -10/Subcaves | A Subdweller sparked back to life 7080 | -10/Subcaves | A Subdweller sparked back to life 7081 | -10/Subcaves | Befriended Subdweller 7081 | -10/Subcaves | Befriended Subdweller 7081 | -10/Subcaves | Befriended Subdweller 7381 | -10/Subcaves | Ambushed by Subdweller buried in earth 7516 | -10/Subcaves | Ambushed by Subdweller buried in earth 7521 | -10/Subcaves | Befriended Subdweller 7565 | -10/Subcaves | Ambushed by Subdweller buried in earth 7566 | -10/Subcaves | Befriended Subdweller 8719 | -10/Subcaves | Befriended Subdweller 9639 | -10/Subcaves | Entered Materials 9639 | -8/Materials | Accompanied by 28 allies 9639 | -8/Materials | Evolved 4 slots: Propulsion x1, Utility x1, Weapon x2 10236 | -8/Materials | Lost 4 allies 10256 | -8/Materials | Build established: Derelict-Tank 10311 | -8/Materials | Garrison activated, responded to threat 10358 | -8/Materials | Lost 10 allies 10439 | -8/Materials | First assault squad dispatched 10578 | -8/Materials | Found Gun Armor 10607 | -8/Materials | Lost 3 allies 10718 | -8/Materials | Lost 9 allies 10921 | -8/Materials | Build established: Scavenger-Tank 11081 | -8/Materials | Discovered new exit (range 3) 11318 | -8/Materials | Build established: Tank 12052 | -8/Materials | Entered Factory 12052 | -7/Factory | Accompanied by 1 ally 12052 | -7/Factory | Evolved 2 slots: Propulsion x1, Utility x1 12053 | -7/Factory | Identified exit to Factory 12053 | -7/Factory | Identified exit to Lower Caves 12483 | -7/Factory | Discovered exit to Lower Caves (range 4) 12579 | -7/Factory | Garrison activated, responded to threat 13400 | -7/Factory | Build established: Skirmisher 13488 | -7/Factory | Found Prototype Launcher 13488 | -7/Factory | Identified Rocket Array 13549 | -7/Factory | Learned 2 Extension zone layouts 13647 | -7/Factory | Learned location of 3 exits from Factory 13660 | -7/Factory | Learned location of 1 exit from Proximity Caves 13729 | -7/Factory | Learned 2 Hub_04(d) zone layouts 13905 | -7/Factory | Attached Gun Armor, gained temporary slots: Weapon x2 13997 | -7/Factory | Entered Lower Caves 13997 | -7/Lower Caves | Accompanied by 1 ally 14105 | -7/Lower Caves | Learned 4 Factory zone layouts 14122 | -7/Lower Caves | Encountered a Warlord checkpoint 14191 | -7/Lower Caves | Build established: Executioner 14475 | -7/Lower Caves | Attacked by a faux Warlord 14848 | -7/Lower Caves | Learned 4 Factory zone layouts 14958 | -7/Lower Caves | Discovered new exit (range 12) 15120 | -7/Lower Caves | Learned Extension stockpile data 15120 | -7/Lower Caves | Learned Research trap positions 15120 | -7/Lower Caves | Learned 8 Research zone layouts 15128 | -7/Lower Caves | Murdered 5 allies 15167 | -7/Lower Caves | Build established: Scavenger-Executioner 15405 | -7/Lower Caves | Learned 4 Factory zone layouts 15929 | -7/Lower Caves | Identified exit to Lower Caves 15937 | -7/Lower Caves | Entered another Lower Caves area 15937 | -7/Lower Caves | Accompanied by 1 ally 15939 | -7/Lower Caves | Spotted B-75 Beast 15963 | -7/Lower Caves | Destroyed B-75 Beast 16031 | -7/Lower Caves | Discovered exit to Factory (range 4) 16747 | -7/Lower Caves | Attracted the attention of an 0b10 checkpoint 16862 | -7/Lower Caves | Attracted the attention of an 0b10 outpost 16884 | -7/Lower Caves | Learned 4 Factory zone layouts 16982 | -7/Lower Caves | Learned Factory terminal intel 17123 | -7/Lower Caves | Discovered new exit (range 15) 17154 | -7/Lower Caves | Identified exit to Zion 17739 | -7/Lower Caves | Found Prototype Device 18026 | -7/Lower Caves | Entered Zion 18090 | -7/Zion | Discovered new exit (range 11) 18159 | -7/Zion | Acquired unknown access codes intercepted by a Zionite 18278 | -7/Zion | Visited the Megawrench Repair Shop 18278 | -7/Zion | Megawrench repaired 14 parts 18404 | -7/Zion | Found GAL Module 18683 | -7/Zion | Learned location of Warlord (-4) 18736 | -7/Zion | Found CR-A16's Pointy Stick 18817 | -7/Zion | Identified exit to Deep Caves 18896 | -7/Zion | Learned location of Data Miner (-6) 18907 | -7/Zion | Learned location of Armory (-4) 19422 | -7/Zion | Identified exit to Proximity Caves 19424 | -7/Zion | Entered Proximity Caves 19432 | -6/Proximity Caves | Spotter reported a threat 20321 | -6/Proximity Caves | Learned location of Extension (-4) 20376 | -6/Proximity Caves | Learned Factory non-interactive machine intel 21241 | -6/Proximity Caves | Entered Factory 21241 | -6/Factory | Evolved 2 slots: Propulsion x2 21242 | -6/Factory | Identified exit to Lower Caves 21242 | -6/Factory | Identified exit to Factory 21244 | -6/Factory | Loaded intel: 237 non-interactive machine locations 21245 | -6/Factory | Loaded intel: 26 terminal locations 21832 | -6/Factory | Build established: Executioner 21869 | -6/Factory | Garrison activated, responded to threat 21918 | -6/Factory | Sucked down chute 21918 | -6/Factory | Entered Waste 21933 | -6/Waste | EMP discharged 21933 | -6/Waste | System corruption reached 10% 21993 | -6/Waste | Spotted C-40 Crusher 21995 | -6/Waste | Destroyed C-40 Crusher 21998 | -6/Waste | Spotted C-40 Crusher 22005 | -6/Waste | Spotted C-40 Crusher 22009 | -6/Waste | Spotted C-40 Crusher 22012 | -6/Waste | Destroyed C-40 Crusher 22033 | -6/Waste | EMP discharged 22062 | -6/Waste | Spotted C-40 Crusher 22069 | -6/Waste | Destroyed C-40 Crusher 22102 | -6/Waste | Spotted C-40 Crusher 22117 | -6/Waste | Destroyed C-40 Crusher 22133 | -6/Waste | EMP discharged 22191 | -6/Waste | Discovered new exit (range 12) 22208 | -6/Waste | Identified exit to Factory 22210 | -6/Waste | Entered Factory 23702 | -6/Factory | Discovered exit to Factory (range 14) 23795 | -6/Factory | Entered another Factory area 23795 | -5/Factory | Evolved 2 slots: Utility x2 23796 | -5/Factory | Identified exit to Upper Caves 24387 | -5/Factory | Build established: Assassin 24449 | -5/Factory | Repaired Broken Arm. Treads 24497 | -5/Factory | Entered Upper Caves 25117 | -5/Upper Caves | Build established: Tank 25781 | -5/Upper Caves | Learned Factory terminal intel 26098 | -5/Upper Caves | Build established: Executioner 26164 | -5/Upper Caves | Discovered new exit (range 7) 26174 | -5/Upper Caves | Identified exit to Upper Caves 26196 | -5/Upper Caves | Attracted the attention of an 0b10 checkpoint 26206 | -5/Upper Caves | Entered another Upper Caves area 26353 | -5/Upper Caves | Discovered new exit (range 13) 26408 | -5/Upper Caves | Identified exit to Factory 26701 | -5/Upper Caves | Spotted B-75 Beast 26731 | -5/Upper Caves | Revealed the true nature of CR-A16's Pointy Stick 26737 | -5/Upper Caves | Destroyed B-75 Beast 26768 | -5/Upper Caves | Lost 5 parts (3n2w) 26791 | -5/Upper Caves | Learned location of 1 exit from Factory 26984 | -5/Upper Caves | Discovered new exit (range 17) 27013 | -5/Upper Caves | Identified exit to Zhirov 27014 | -5/Upper Caves | Entered Zhirov 27014 | -5/Zhirov | Discovered new exit (range 3) 27037 | -5/Zhirov | Build established: Scavenger-Tank 27044 | -5/Zhirov | Met Zhirov 27080 | -5/Zhirov | Learned location of Quarantine (-2) 27080 | -5/Zhirov | Learned location of Testing (-3) 27080 | -5/Zhirov | Learned location of Command (-1) 27090 | -5/Zhirov | Zhirov requested help retrieving the SGEMP Prototype 27118 | -5/Zhirov | Found Alien Artifact 27138 | -5/Zhirov | Found Alien Artifact 27138 | -5/Zhirov | Identified Integrated Reactor 27138 | -5/Zhirov | Installed Integrated Reactor, increased core energy generation (+10) 27363 | -5/Zhirov | Identified exit to Proximity Caves 27365 | -5/Zhirov | Entered Proximity Caves 27385 | -4/Proximity Caves | Learned location of 1 exit from Research 27544 | -4/Proximity Caves | Spotted B-86 Titan 27747 | -4/Proximity Caves | Spotter reported a threat 27936 | -4/Proximity Caves | Destroyed B-86 Titan 28493 | -4/Proximity Caves | Learned Research terminal intel 28589 | -4/Proximity Caves | Discovered exit to Factory (range 6) 28662 | -4/Proximity Caves | Entered Factory 28662 | -4/Factory | Evolved 2 slots: Power x1, Utility x1 28663 | -4/Factory | Identified exit to Upper Caves 28664 | -4/Factory | Loaded intel: 26 terminal locations 29633 | -4/Factory | Discovered exit to Upper Caves (range 20) 30261 | -4/Factory | Spotted B-86 Titan 30287 | -4/Factory | Discovered new exit (range 21) 30316 | -4/Factory | Garrison activated, responded to threat 30412 | -4/Factory | First assault squad dispatched 30474 | -4/Factory | Identified exit to Research 30505 | -4/Factory | Destroyed B-86 Titan 30549 | -4/Factory | Sucked down chute 30549 | -4/Factory | Entered Waste 30580 | -4/Waste | Spotted C-40 Crusher 30585 | -4/Waste | Spotted C-40 Crusher 30589 | -4/Waste | Destroyed C-40 Crusher 30594 | -4/Waste | Destroyed C-40 Crusher 30719 | -4/Waste | Spotted C-40 Crusher 30719 | -4/Waste | Spotted C-40 Crusher 30730 | -4/Waste | Destroyed C-40 Crusher 30732 | -4/Waste | Destroyed C-40 Crusher 30755 | -4/Waste | Spotted C-40 Crusher 30778 | -4/Waste | Destroyed C-40 Crusher 31031 | -4/Waste | Spotted C-40 Crusher 31043 | -4/Waste | Crushed by Compactor (1 part destroyed) 31049 | -4/Waste | Crushed by Compactor (0 parts destroyed, 1 dropped) 31052 | -4/Waste | Crushed by Compactor (1 part destroyed) 31055 | -4/Waste | Crushed by Compactor (0 parts destroyed, 1 dropped) 31083 | -4/Waste | Lost 4 parts (1p1u2w) 31203 | -4/Waste | Discovered new exit (range 10) 31219 | -4/Waste | Identified exit to Factory 31220 | -4/Waste | Entered Factory 31349 | -4/Factory | Found Quantum Capacitor 31757 | -4/Factory | Build established: Scavenger-Assassin 32028 | -4/Factory | Discovered new exit (range 17) 32054 | -4/Factory | Identified exit to Extension 32055 | -4/Factory | Entered Extension 32287 | -4/Extension | Build established: Scavenger-Tank 32620 | -4/Extension | Rescued a captive Derelict 32630 | -4/Extension | Rescued a captive Derelict 32723 | -4/Extension | Rescued a captive Derelict 32956 | -4/Extension | Spotted B-86 Titan 32979 | -4/Extension | Spotted B-86 Titan 32982 | -4/Extension | Destroyed B-86 Titan 33006 | -4/Extension | Lost 3 allies 33057 | -4/Extension | Destroyed B-86 Titan 33506 | -4/Extension | Build established: Commander-Assassin 33989 | -4/Extension | Rescued a captive Derelict 34055 | -4/Extension | First assault squad dispatched 34103 | -4/Extension | Build established: Commander-Tank 34181 | -4/Extension | Rescued A7 34344 | -4/Extension | Lost 5 allies 34441 | -4/Extension | Discovered exit to Research (range 10) 34442 | -4/Extension | Discovered new exit (range 6) 34452 | -4/Extension | Identified exit to Cetus 34507 | -4/Extension | Disrupted transfer network 34507 | -4/Extension | Entered Cetus 34507 | -4/Cetus | Accompanied by 14 allies (A7) 34512 | -4/Cetus | Acquired a Cetus Manufacturing Module code from A7 34530 | -4/Cetus | Spotted Cetus Guard 34530 | -4/Cetus | Spotted Cetus Guard 34550 | -4/Cetus | Spotted Cetus Guard 34550 | -4/Cetus | Spotted Cetus Guard 34557 | -4/Cetus | Allies destroyed Cetus Guard 34560 | -4/Cetus | Allies destroyed Cetus Guard 34562 | -4/Cetus | Allies destroyed Cetus Guard 34563 | -4/Cetus | Allies destroyed Cetus Guard 34686 | -4/Cetus | Started Cetus Manufacturing Module 34705 | -4/Cetus | Escorted A7 to Cetus Mainframe 34711 | -4/Cetus | Manufactured an Enhanced Grunt 34736 | -4/Cetus | Manufactured an Enhanced Grunt 34761 | -4/Cetus | Manufactured an Enhanced Grunt 34786 | -4/Cetus | Manufactured an Enhanced Grunt 34811 | -4/Cetus | Manufactured an Enhanced Grunt 34824 | -4/Cetus | Discovered new exit (range 22) 34856 | -4/Cetus | Identified exit to Archives 34897 | -4/Cetus | Spotted Cetus Guard 34898 | -4/Cetus | Spotted Cetus Guard 34900 | -4/Cetus | Spotted Cetus Guard 34900 | -4/Cetus | Spotted Cetus Guard 34902 | -4/Cetus | Destroyed Cetus Guard 34909 | -4/Cetus | Allies destroyed Cetus Guard 34914 | -4/Cetus | Discovered exit to Research (range 22) 34915 | -4/Cetus | Destroyed Cetus Guard 34924 | -4/Cetus | Destroyed Cetus Guard 34942 | -4/Cetus | Met Revision 17 35005 | -4/Cetus | System corruption reached 10% 35051 | -4/Cetus | Entered Archives 35051 | -4/Archives | Accompanied by 14 allies (A7) 35056 | -4/Archives | Received a hacking code to weaken MAIN.C 35096 | -4/Archives | Discovered new exit (range 21) 35118 | -4/Archives | Lost 3 allies 35225 | -4/Archives | Discovered exit to Research (range 15) 35437 | -4/Archives | Discovered new exit (range 19) 35591 | -4/Archives | Build established: Scavenger-Tank 35673 | -4/Archives | Identified exit to Hub_04(d) 37080 | -4/Archives | Entered Hub_04(d) 37080 | -4/Hub_04(d) | Accompanied by 10 allies 37348 | -4/Hub_04(d) | Lost 4 allies 37490 | -4/Hub_04(d) | Spotted B-86 Titan 37505 | -4/Hub_04(d) | Lost 4 allies 37600 | -4/Hub_04(d) | Destroyed B-86 Titan 37629 | -4/Hub_04(d) | Lost 3 parts (1u2w) 37694 | -4/Hub_04(d) | Discovered exit to Research (range 21) 37788 | -4/Hub_04(d) | Discovered exit to Research (range 5) 37955 | -4/Hub_04(d) | Network Hub disabled 37981 | -4/Hub_04(d) | Entered Research 37981 | -3/Research | Evolved 2 slots: Utility x1, Weapon x1 37982 | -3/Research | Identified exit to Research 37983 | -3/Research | Identified exit to Testing 37984 | -3/Research | Loaded intel: 107 trap records 37986 | -3/Research | Loaded intel: 18 terminal locations 38001 | -3/Research | Discovered exit to Research (range 19) 38181 | -3/Research | Revision forces began assault on 0b10 38184 | -3/Research | Met up with Revision 17++ 38310 | -3/Research | Build established: Scavenger-Assassin 38342 | -3/Research | Spotted B-86 Titan 38366 | -3/Research | Destroyed B-86 Titan 38672 | -3/Research | Build established: Scavenger-Tank 38681 | -3/Research | Research terminal network offline 39132 | -3/Research | Entered Testing 39326 | -3/Testing | Build established: Scavenger-Assassin 39898 | -3/Testing | Found Prototype Device 39898 | -3/Testing | Identified Exp. Hardlight Generator 40236 | -3/Testing | Lost 4 parts (1p2n1u) 40294 | -3/Testing | Build established: Scavenger-Tank 40339 | -3/Testing | Found Prototype Device 40339 | -3/Testing | Identified Exp. Thermal Shield 40608 | -3/Testing | Lost 5 parts (5w) 40803 | -3/Testing | System corruption reached 10% 41193 | -3/Testing | Found Prototype Hackware 41210 | -3/Testing | Spotted Striker 41289 | -3/Testing | Destroyed Striker 41301 | -3/Testing | Spotted Striker 41323 | -3/Testing | Spotted Alpha 7 41339 | -3/Testing | Destroyed Striker 41355 | -3/Testing | Destroyed Alpha 7 41387 | -3/Testing | Found Prototype Energy Gun 41387 | -3/Testing | Identified Enh. Gamma Rifle 41391 | -3/Testing | Found Prototype Ballistic Gun 41391 | -3/Testing | Identified Multirail 41409 | -3/Testing | Found Prototype Processor 41409 | -3/Testing | Identified Exp. Targeting Computer 41768 | -3/Testing | Stole the SGEMP Prototype 41852 | -3/Testing | Scanned by Researcher 42244 | -3/Testing | Unstable Terrabomb Derivative detonated 42320 | -3/Testing | Destroyed 7 combat bots 42324 | -3/Testing | Lost 9 parts (2p5n1u1w) 42435 | -3/Testing | Found Prototype Device 42435 | -3/Testing | Identified 2N-1CE's Frost Array 42487 | -3/Testing | Found Prototype Launcher 42487 | -3/Testing | Identified Adv. Micro-nuke Launcher 42491 | -3/Testing | Found Adv. Micro-nuke Launcher 42507 | -3/Testing | Found Adv. Micro-nuke Launcher 42540 | -3/Testing | Found Prototype Processor 42540 | -3/Testing | Identified Exp. Signal Interpreter 42724 | -3/Testing | System corruption reached 30% 42835 | -3/Testing | Discovered exit to Research (range 5) 42944 | -3/Testing | Repaired Railgun? 43024 | -3/Testing | Spotted PX-8ZTNPS5WI3 43064 | -3/Testing | Destroyed PX-8ZTNPS5WI3 43091 | -3/Testing | Lost 3 parts (1p1u1w) 43267 | -3/Testing | Found Prototype Energy Cannon 43267 | -3/Testing | Identified Hpw. Disruptor Cannon 43330 | -3/Testing | Found Prototype Energy Cannon 43330 | -3/Testing | Identified Disintegrator 43382 | -3/Testing | First assault squad dispatched 43389 | -3/Testing | Entered Research 43389 | -2/Research | Evolved 2 slots: Utility x2 43464 | -2/Research | Identified System Mapper 43638 | -2/Research | Garrison activated, responded to threat 43824 | -2/Research | Found Prototype Device 43824 | -2/Research | Identified Adv. EM Shield 43889 | -2/Research | First assault squad dispatched 44298 | -2/Research | Lost 4 parts (1p1u2w) 44417 | -2/Research | Identified Transdimensional Reconstructor 44417 | -2/Research | Warped through subspace 44531 | -2/Research | Core integrity fell below 50% 44537 | -2/Research | Identified Heart of Steel 44551 | -2/Research | Released all parts (7) 44557 | -2/Research | Core integrity fell below 20% 44564 | -2/Research | Destroyed by G-73 Enforcer with Heavy Laser Last Messages --------------- 44551_ Released Exp. Signal Interpreter. 44551_ Released Machine Analyzer. 44551_ Released Adv. Coolant Injector. 44551_ Released Heart of Steel. 44551_ Dropped Cloaking Device. 44551_ U-05 Engineer lays Concrete. 44552_ Acquired Adv. Remote Datajack. 44554_ Acquired Plasma Lance. 44555_ U-05 Engineer lays Concrete. 44557_ U-05 Engineer builds a Wall. 44557_ U-05 Engineer lays Concrete. 44557_ Acquired Impulse Thruster. 44558_ The unstable cave ceiling collapses. 44559_ U-05 Engineer lays Concrete. 44560_ The unstable cave ceiling collapses. 44560_ U-05 Engineer lays Concrete. 44560_ Impulse Thruster destroyed. 44561_ The unstable cave ceiling collapses. 44561_ U-05 Engineer builds a Wall. 44561_ W-44 Eye sends out distress signal. Map ----- +----------------------------------------------------+ | ?????????????????????????????????????????????????? | | ??????????????????????"??????????????????????????? | | ??????????????????????""?????????????????????????? | | ??????????????????????G??????????????????????????? | | ??????????????????????""?????????????????????????? | | ??????????????????????"??????????????????????????? | | ?????????????????????????????????????????????????? | | ?????????????????????????????????????????????????? | | ?????????????????????????????????????????????????? | | ?????????????????????????????????????????????????? | | ?????????????????????????????????????????????????? | | ????????????????????????"F?""????????????????????? | | ????????????????????????"""""????????????????????? | | ???????????????? ???????"""""????????????????????? | | ??????????????? ???????????????????????????????? | | ???????????????? ??????????????????????????????? | | ????????????????? ###+###???????????????????????? | | ?????????????????? #??????????????????????? | | ??????????????????? #??????????????????????? | | ???????????????????? #??????????????????????? | | ????????????????????? #??????????????????????? | | ?????????????????????# #??????????????????????? | | ?????????????????????# #??????????????????????? | | ?????????????????????# #??????????????????"""?? | | ?????????????????????# +??????????????????""""? | | ?????????????????????# A @#??????????????????""""? | | ?????????????????? ??# ##############??????"""? | | ?????????????????? ?# g # """" #?????????? | | ?????????????????? # w # """""" #?????????? | | ??????????????????? # = # ""F "" #?????????? | | ???????????????????? # ! u# """ #?????????? | | ?????????????????????# ! #?????????? | | ?????????????????????# ######????? | | ?????????????????????# s # # #???? | | ?????????????????????# """ # #?? | | ?????????????????????# ### ? | | ?????????????????????## # # ###? | | ??????????????????????## # ## | | ??????????????????????###= | | ??????????????????????# ! % * ! ! # | | ??????????????????????# =]] %[!!!! =% % | | ??????????????????????### =* # #|&! =% | | ??????????????????????# ! # # | | ??????????????????????# # | | ??????????????????????# # # | | ??????????????????????# ## # # #### | | ??????????????????????# ?#### ## ########### | | ??????????????????????# ????###? # | | ??????????????????????#######????????# # | | ??????????????????????????????????????## | +----------------------------------------------------+ Best States ------------- Heat Dissipation 84 Coolant Potential 100 Energy Generation 65 Energy Capacity 660 Matter Stores 300 Matter Capacity 550 Sight Range 22 Robot Scan Range 18 Terrain Scan Range 16 Terrain Scan Density 10 Cloak Strength 2 Power Amplification 40 EM Shielding 3 Corruption Containment 8 Corruption Block 16 Armor Coverage 1200 Resistance: EM 50 Melee Speed Boost 30 Evasion (%) 62 Targeting Accuracy 12 Core Analysis 6 Recoil Reduction 6 Particle Charging 25 Offensive Hacking 20 Item Schematics ----------------- Spear | -7/Zion | Archive Hvy. Plasma Cannon | -7/Zion | Archive Gatling Laser | -7/Zion | Archive Hyp. Gauss Rifle | -7/Zion | Archive Med. Reactive Plating | -7/Zion | Archive Wave Gun | -7/Zion | Archive Enh. Optical Array | -7/Zion | Archive Dynamic Insulation System | -7/Zion | Archive Hvy. Pick | -7/Zion | Archive Coolant Injector | -7/Zion | Archive Imp. Kinecellerator | -7/Zion | Archive Imp. Reaction Control System | -7/Zion | Archive Chainsword | -7/Zion | Archive Plasma Cannon | -7/Zion | Archive Huge Storage Unit | -5/Factory | Hacked Assault Drone Bay | -5/Zhirov | Free Exp. Heat Sink | -5/Zhirov | Free Exp. Optical Array | -5/Zhirov | Free Imp. Arc Thrower | -5/Zhirov | Free Adv. Gravity Neutralizer | -3/Testing | Archive Prc. Energy Filter | -3/Testing | Archive Exp. Focal Shield | -3/Testing | Archive Exp. Power Amplifier | -3/Testing | Archive Adv. Myomer Leg | -3/Testing | Archive Hvy. Tesla Rifle | -3/Testing | Archive Adv. Matter Compressor | -3/Testing | Archive Lgt. Antimatter Cannon | -3/Testing | Archive Cld. Field Propulsion Drive | -3/Testing | Archive Nanosword | -3/Testing | Archive Gravity Neutralizer | -3/Testing | Archive Robot Schematics ------------------ W-25 Informer | -7/Zion | Archive B-48 Gladiator | -7/Zion | Archive S-27 Virus | -7/Zion | Archive Y-72 Warden | -7/Zion | Archive S-43 Plague | -3/Testing | Archive W-44 Eye | -3/Testing | Archive K-01 Serf | -3/Testing | Archive Fabricated ------------ Nothing Repaired ---------- Arm. Treads | 70% | -5/Factory | Broken Railgun | 18% | -3/Testing Studied --------- None Alien Tech Used ----------------- Integrated Reactor Transdimensional Reconstructor Achievements -------------- None Challenges ------------ None Game ------ Seed MomentumImpactBasin Manual? 0 Play Time 05:44:09 Cumulative 453.2 hours Start 2026.03.11 @ 16:42:21 End 2026.03.12 @ 19:51:38 Sessions 8 Manual Loads 0 Difficulty Rogue Special Mode None Game No. 354 Rogue 354 Adventurer 0 Explorer 0 Win Type - Total 6 Types 4/0/0/0/0/0/0/2/0/0 Lore% 72 Gallery% 71 Achievement% 58 Wizard Run 0 Options --------- Layout 1 ASCII 0 Keyboard 0 Movement Mouse Keybinds 0 Fullscreen 1 Font 32/SmallcapsGlow Map View 50x35 Zoom Use 0% Tactical HUD 1 Map Filters NONE Filters NONE Steam 1 RUN: 5986aca0-3115-4e22-87a6-08763ee581b1